Workbook

Sheet DATA (hidden)
M1: 1 | N1: Select your first remittance date > | W1: 1 | X1: 2 | Y1: 3 | Z1: 4 | AA1: 5 | AB1: =+AA1+1 -> 6 | AC1: =+AB1+1 -> 7 | AD1: 8 | AE1: 9 | AF1: 10 | AG1: 11 | AH1: 12 | AQ1: 1 | AV1: 1 | AW1: =+AV1+1 -> 2 | AX1: =+AW1+1 -> 3 | AY1: 4 | AZ1: 5 | BA1: 6 | BB1: =+BA1+1 -> 7 | BC1: =+BB1+1 -> 8 | BD1: =+BC1+1 -> 9 | BE1: =+BD1+1 -> 10 | BF1: =+BE1+1 -> 11 | BG1: =+BF1+1 -> 12 | BH1: =+BG1+1 -> 13 | BI1: =+BH1+1 -> 14 | BJ1: =+BI1+1 -> 15 | BK1: =+BJ1+1 -> 16 | BL1: =+BK1+1 -> 17 | BM1: =+BL1+1 -> 18 | BN1: =+BM1+1 -> 19 | BO1: =+BN1+1 -> 20 | BP1: =+BO1+1 -> 21 | BQ1: =+BP1+1 -> 22 | BR1: =+BQ1+1 -> 23 | BS1: =+BR1+1 -> 24 | BT1: =+BS1+1 -> 25 | BU1: =+BT1+1 -> 26 | BV1: =+BU1+1 -> 27 | BW1: =+BV1+1 -> 28 | BX1: =+BW1+1 -> 29 | BY1: =+BX1+1 -> 30 | BZ1: =+BY1+1 -> 31 | CA1: =+BZ1+1 -> 32 | CB1: =+CA1+1 -> 33 | CC1: =+CB1+1 -> 34 | CD1: =+CC1+1 -> 35 | CE1: =+CD1+1 -> 36 | CF1: =+CE1+1 -> 37 | CG1: =+CF1+1 -> 38 | CH1: =+CG1+1 -> 39 | CI1: =+CH1+1 -> 40 | CJ1: =+CI1+1 -> 41 | CK1: =+CJ1+1 -> 42 | CL1: =+CK1+1 -> 43 | CM1: =+CL1+1 -> 44 | CN1: =+CM1+1 -> 45 | CO1: =+CN1+1 -> 46 | CP1: =+CO1+1 -> 47 | CQ1: =+CP1+1 -> 48 | CR1: =+CQ1+1 -> 49 | CS1: =+CR1+1 -> 50 | CT1: =+CS1+1 -> 51 | CU1: =+CT1+1 -> 52 | CV1: =+CU1+1 -> 53 | CW1: =+CV1+1 -> 54 | CX1: =+CW1+1 -> 55 | CY1: =+CX1+1 -> 56 | CZ1: =+CY1+1 -> 57 | DA1: =+CZ1+1 -> 58 | DB1: =+DA1+1 -> 59 | DC1: =+DB1+1 -> 60 | DD1: =+DC1+1 -> 61 | DE1: =+DD1+1 -> 62 | DF1: =+DE1+1 -> 63 | DG1: =+DF1+1 -> 64 | DH1: =+DG1+1 -> 65 | DI1: =+DH1+1 -> 66 | DJ1: =+DI1+1 -> 67 | DK1: =+DJ1+1 -> 68 | DL1: =+DK1+1 -> 69 | DM1: =+DL1+1 -> 70 | DN1: =+DM1+1 -> 71 | DO1: =+DN1+1 -> 72 | DP1: =+DO1+1 -> 73 | DQ1: =+DP1+1 -> 74 | DR1: =+DQ1+1 -> 75 | DS1: =+DR1+1 -> 76 | DT1: =+DS1+1 -> 77 | DU1: =+DT1+1 -> 78 | DV1: =+DU1+1 -> 79 | DW1: =+DV1+1 -> 80 | DX1: =+DW1+1 -> 81 | DY1: =+DX1+1 -> 82 | DZ1: =+DY1+1 -> 83 | EA1: =+DZ1+1 -> 84 | EB1: =+EA1+1 -> 85 | EC1: =+EB1+1 -> 86 | ED1: =+EC1+1 -> 87 | EE1: =+ED1+1 -> 88 | EF1: =+EE1+1 -> 89 | EG1: =+EF1+1 -> 90 | EH1: =+EG1+1 -> 91 | EI1: =+EH1+1 -> 92 | EJ1: =+EI1+1 -> 93 | EK1: =+EJ1+1 -> 94 | EL1: =+EK1+1 -> 95 | EM1: =+EL1+1 -> 96 | EN1: =+EM1+1 -> 97 | EO1: =+EN1+1 -> 98 | EP1: =+EO1+1 -> 99 | EQ1: =+EP1+1 -> 100 | ER1: =+EQ1+1 -> 101 | ES1: =+ER1+1 -> 102 | ET1: =+ES1+1 -> 103 | EU1: =+ET1+1 -> 104 | EV1: =+EU1+1 -> 105 | EW1: =+EV1+1 -> 106 | EX1: =+EW1+1 -> 107 | EY1: =+EX1+1 -> 108 | EZ1: =+EY1+1 -> 109 | FA1: =+EZ1+1 -> 110 | FB1: =+FA1+1 -> 111 | FC1: =+FB1+1 -> 112 | FD1: =+FC1+1 -> 113 | FE1: =+FD1+1 -> 114 | FF1: =+FE1+1 -> 115 | FG1: =+FF1+1 -> 116 | FH1: =+FG1+1 -> 117 | FI1: =+FH1+1 -> 118 | FJ1: =+FI1+1 -> 119 | FK1: =+FJ1+1 -> 120 | FL1: =+FK1+1 -> 121 | FM1: =+FL1+1 -> 122 | FN1: =+FM1+1 -> 123
AQ2: English | BA2: Special Levy
C3: 1 | D3: Press arrow for your School Division > | E3: No. | G3: DIVNUM_MUN | H3: MUN | I3: DUE | AQ3: French | AX3: Special Levy | AY3: Special Levy | AZ3: Special Levy | BA3: Before | BB3: Previous Year | BF3: Total
A4: DIVNUM | B4: 1 | C4: 2 | D4: BORDER LAND | E4: BO | F4: =COUNTIF($G$4:$G$256,E4) -> 9 | G4: BO | H4: R.M. of De Salaberry | I4: Oct 31 | K4: DATENUM | L4: 2 | M4: 2 | N4: Provincial Funding | W4: =+'DATA ENTRY'!F29 -> REMITTANCE 1 | X4: =+'DATA ENTRY'!G29 -> REMITTANCE 2 | Y4: =+'DATA ENTRY'!H29 -> REMITTANCE 3 | Z4: =+'DATA ENTRY'!I29 -> REMITTANCE 4 | AA4: =+'DATA ENTRY'!J29 -> REMITTANCE 5 | AB4: =+'DATA ENTRY'!K29 -> REMITTANCE 6 | AC4: =+'DATA ENTRY'!L29 -> REMITTANCE 7 | AD4: =+'DATA ENTRY'!M29 -> REMITTANCE 8 | AE4: =+'DATA ENTRY'!N29 -> REMITTANCE 9 | AF4: =+'DATA ENTRY'!O29 -> REMITTANCE 10 | AG4: =+'DATA ENTRY'!P29 -> REMITTANCE 11 | AH4: =+'DATA ENTRY'!Q29 -> REMITTANCE 12 | AI4: =IF(ISERROR(HLOOKUP(AI5,W1:AH5,3,0)=TRUE),0,(HLOOKUP(AI5,W1:AH5,3,0))) -> 0 | AV4: 80 | AX4: for the SD | AY4: for DSFM | AZ4: Adj for DSFM | BA4: TIG & PTOG | BB4: TIG ADJ | BC4: TIG | BD4: PTOG | BE4: DSFM PTOG | BF4: Special Levy | BG4: Municipalities | BH4: NO DSFM
C5: 3 | D5: BRANDON | E5: BR | F5: 9 | G5: BO | H5: Municipality of Emerson-Franklin | I5: Oct 31 | M5: 3 | N5: Jul 31 | W5: =+'DATA ENTRY'!F30 -> 0 | X5: =+'DATA ENTRY'!G30 -> 0 | Y5: =+'DATA ENTRY'!H30 -> 0 | Z5: =+'DATA ENTRY'!I30 -> 0 | AA5: =+'DATA ENTRY'!J30 -> 0 | AB5: =+'DATA ENTRY'!K30 -> 0 | AC5: =+'DATA ENTRY'!L30 -> 0 | AD5: =+'DATA ENTRY'!M30 -> 0 | AE5: =+'DATA ENTRY'!N30 -> 0 | AF5: =+'DATA ENTRY'!O30 -> 0 | AG5: =+'DATA ENTRY'!P30 -> 0 | AH5: =+'DATA ENTRY'!Q30 -> 0 | AI5: =+MAX(AI6:AI31) -> 0 | AN5: 1 | AV5: CO. | AW5: DIVISION/DISTRICT | AX5: SPLEVDIV | AY5: SPLEVDSFM | AZ5: SLADJLT | BA5: G17 | BB5: G18 | BC5: TIGSL2 | BD5: TOGSL2 | BE5: TOGDSFM | BF5: SPLEVLT | BG5: 1 | BH5: =+BG5+1 -> 2 | BI5: =+BH5+1 -> 3 | BJ5: 4 | BK5: 5 | BL5: 6 | BM5: 7 | BN5: 8 | BO5: 9 | BP5: 10 | BQ5: 11 | BR5: 12 | BS5: 13 | BT5: 14 | BU5: 15 | BV5: 16 | BW5: 17 | BX5: 18 | BY5: 19 | BZ5: 20 | CA5: 21 | CB5: 22 | CC5: 23 | CD5: 24 | CE5: 25 | CF5: 26 | CG5: 27 | CH5: 28 | CI5: 29 | CJ5: 30 | CK5: 31 | CL5: 32 | CM5: 33 | CN5: 34 | CO5: 35 | CP5: 36 | CQ5: 37 | CR5: 38 | CS5: 39 | CT5: 40 | CU5: 41 | CV5: 42 | CW5: 43 | CX5: 44 | CY5: 45 | CZ5: 46 | DA5: 47 | DB5: 48 | DC5: 49 | DD5: 50 | DE5: 51 | DF5: 52 | DG5: 53 | DH5: 54 | DI5: 55 | DJ5: 1 | DK5: =+DJ5+1 -> 2 | DL5: =+DK5+1 -> 3 | DM5: 4 | DN5: 5 | DO5: 6 | DP5: 7 | DQ5: 8 | DR5: 9 | DS5: 10 | DT5: 11 | DU5: 12 | DV5: 13 | DW5: 14 | DX5: 15 | DY5: 16 | DZ5: 17 | EA5: 18 | EB5: 19 | EC5: 20 | ED5: 21 | EE5: 22 | EF5: 23 | EG5: =+EF5+1 -> 24 | EH5: 25 | EI5: 26 | EJ5: 27 | EK5: 28 | EL5: 29 | EM5: 30 | EN5: 31 | EO5: 32 | EP5: 33 | EQ5: 34 | ER5: 35 | ES5: 36 | ET5: 37 | EU5: 38 | EV5: 39 | EW5: 40 | EX5: 41 | EY5: 42 | EZ5: 43 | FA5: 44 | FB5: 45 | FC5: 46 | FD5: 47 | FE5: 48 | FF5: 49 | FG5: 50 | FH5: 51 | FI5: 52 | FJ5: 53 | FK5: 54 | FL5: 55 | FM5: Ratios Page | FN5: PTOG DIV | FP5: DSFM | FQ5: Control
A6: DIVNUM2 | B6: =VLOOKUP(B4,C1:E55,3) -> No. | C6: 4 | D6: FORT LA BOSSE | E6: FO | F6: 7 | G6: BO | H6: R.M. of La Broquerie | I6: Sep 30 | K6: DATENUM2 | L6: =IF(OR(DATENUM=1,DATENUM=2),"",VLOOKUP(L4,M1:N6,2)) ->  | M6: 4 | N6: Oct 31 | T6: 6 | V6: =+'DATA ENTRY'!A31 -> 0 | W6: =IF('DATA ENTRY'!F31="",0,1) -> 0 | X6: =IF('DATA ENTRY'!G31="",0,2) -> 0 | Y6: =IF('DATA ENTRY'!H31="",0,3) -> 0 | Z6: =IF('DATA ENTRY'!I31="",0,4) -> 0 | AA6: =IF('DATA ENTRY'!J31="",0,AA1) -> 0 | AB6: =IF('DATA ENTRY'!K31="",0,AB1) -> 0 | AC6: =IF('DATA ENTRY'!L31="",0,AC1) -> 0 | AD6: =IF('DATA ENTRY'!M31="",0,AD1) -> 0 | AE6: =IF('DATA ENTRY'!N31="",0,AE1) -> 0 | AF6: =IF('DATA ENTRY'!O31="",0,AF1) -> 0 | AG6: =IF('DATA ENTRY'!P31="",0,AG1) -> 0 | AH6: =IF('DATA ENTRY'!Q31="",0,AH1) -> 0 | AI6: =MAX(W6:AH6) -> 0 | AJ6: =HLOOKUP($AI$5,'DATA ENTRY'!$F$16:$Q$56,T6,0) ->  | AK6: =+V6 -> 0 | AN6: =+AN5+1 -> 2 | FW6: TOTAL Sp. Levy - L
C7: 5 | D7: HANOVER | E7: HA | F7: 9 | G7: BO | H7: R.M. of Montcalm | I7: Oct 31 | T7: =+T6+1 -> 7 | V7: =+'DATA ENTRY'!A32 -> 0 | W7: =IF('DATA ENTRY'!F32="",0,1) -> 0 | X7: =IF('DATA ENTRY'!G32="",0,2) -> 0 | Y7: =IF('DATA ENTRY'!H32="",0,3) -> 0 | Z7: =IF('DATA ENTRY'!I32="",0,4) -> 0 | AA7: =IF('DATA ENTRY'!J32="",0,AA1) -> 0 | AB7: =IF('DATA ENTRY'!K32="",0,AB1) -> 0 | AC7: =IF('DATA ENTRY'!L32="",0,AC1) -> 0 | AD7: =IF('DATA ENTRY'!M32="",0,AD1) -> 0 | AE7: =IF('DATA ENTRY'!N32="",0,AE1) -> 0 | AF7: =IF('DATA ENTRY'!O32="",0,AF1) -> 0 | AG7: =IF('DATA ENTRY'!P32="",0,AG1) -> 0 | AH7: =IF('DATA ENTRY'!Q32="",0,AH1) -> 0 | AI7: 0 | AJ7: =IF(HLOOKUP($AI$5,'DATA ENTRY'!$F$16:$Q$56,T7,0)="",0,HLOOKUP($AI$5,'DATA ENTRY'!$F$16:$Q$56,T7,0)) ->  | AK7: =+V7 -> 0 | AN7: =+AN6+1 -> 3 | AQ7: Important !!!!!!!!!: Before post the form 2, we have to send the ratios for the current year to the TAX Office - Carlene Yachiw so they can send the right amount to the Divisions, for the split between the Divisions share and DSFM. | AU7: W/O | AV7: BE | AW7: BEAUTIFUL PLAINS | BA7: 10150397 | BC7: 252166 | BD7: 393770 | BF7: 9504461 | BG7: RM OF ELTON (124) | BH7: MUNICIPALITY OF GLENELLA-LANSDOWNE (142) | BI7: MUNICIPALITY OF NORTH CYPRESS-LANGFORD (155) | BJ7: MUNICIPALITY OF NORTH NORFOLK (156) | BK7: RM OF MINTO-ODANAH (159) | BL7: RM OF ROSEDALE (170) | BM7: MUNICIPALITY OF GLENBORO-SOUTH CYPRESS (187) | BN7: RM OF VICTORIA (197) | BO7: TOWN OF CARBERRY (407) | BP7: TOWN OF NEEPAWA (437) | BQ7: 0 | BR7: 0 | BS7: 0 | BT7: 0 | BU7: 0 | BV7: 0 | BW7: 0 | BX7: 0 | BY7: 0 | BZ7: 0 | CA7: 0 | CB7: 0 | CC7: 0 | DJ7: 145332 | DK7: 683255 | DL7: 4855063 | DM7: 7367 | DN7: 66206 | DO7: 1012105 | DP7: 6657 | DQ7: 2788 | DR7: 783715 | DS7: 1941974 | DT7: 0 | DU7: 0 | DV7: 0 | DW7: 0 | DX7: 0 | DY7: 0 | DZ7: 0 | EA7: 0 | EB7: 0 | EC7: 0 | ED7: 0 | EE7: 0 | FM7: =+BF7-SUM(DJ7:FL7) -> -1 | FN7: 194935.6 | FO7: =+AV7 -> BE | FP7: No DSFM | FQ7: =IF(AND(FM7=0,FP7="No DSFM"),0,AY7-SUM(DJ7:EF7)) -> -9504462 | FR7: =+AY7-SUM(DJ7:EF7) -> -9504462 | FS7: =+AV7 -> BE | FW7: =SUM(AY7:AY42) -> 36649655
C8: 6 | D8: LOUIS RIEL | E8: LR | F8: =COUNTIF($G$4:$G$256,E8) -> 3 | G8: BO | H8: R.M. of Morris | I8: Oct 29 | K8: DATE_ON_OFF | L8: 2 | T8: =+T7+1 -> 8 | U8: 1 | V8: =+'DATA ENTRY'!A33 ->  | W8: =IF('DATA ENTRY'!F33="",0,1) -> 0 | X8: =IF('DATA ENTRY'!G33="",0,2) -> 0 | Y8: =IF('DATA ENTRY'!H33="",0,3) -> 0 | Z8: =IF('DATA ENTRY'!I33="",0,4) -> 0 | AA8: =IF('DATA ENTRY'!J33="",0,AA1) -> 0 | AB8: =IF('DATA ENTRY'!K33="",0,AB1) -> 0 | AC8: =IF('DATA ENTRY'!L33="",0,AC1) -> 0 | AD8: =IF('DATA ENTRY'!M33="",0,AD1) -> 0 | AE8: =IF('DATA ENTRY'!N33="",0,AE1) -> 0 | AF8: =IF('DATA ENTRY'!O33="",0,AF1) -> 0 | AG8: =IF('DATA ENTRY'!P33="",0,AG1) -> 0 | AH8: =IF('DATA ENTRY'!Q33="",0,AH1) -> 0 | AI8: 0 | AJ8: =HLOOKUP($AI$5,'DATA ENTRY'!$F$16:$Q$56,T8,0) ->  | AN8: 4 | AV8: BO | AW8: BORDER LAND | AX8: 18432267 | AY8: 115937 | AZ8: -228 | BA8: 18547976 | BB8: 0 | BC8: 2575999 | BD8: 717568.4907 | BE8: 22995.62942 | BF8: 15231412.88 | BG8: RM OF DE SALABERRY (119) | BH8: MUNICIPALITY OF EMERSON-FRANKLIN (127) | BI8: RM OF LA BROQUERIE (138) | BJ8: RM OF MONTCALM (151) | BK8: RM OF MORRIS (152) | BL8: MUNICIPALITY OF RHINELAND (164) | BM8: TOWN OF ALTONA (400) | BN8: RM OF PINEY (610) | BO8: RM OF STUARTBURN (612) | BP8: 0 | BQ8: 0 | BR8: 0 | BS8: 0 | BT8: 0 | BU8: 0 | BV8: 0 | BW8: 0 | BX8: 0 | BY8: 0 | BZ8: 0 | CA8: 0 | CB8: 0 | CC8: 0 | DJ8: 280516 | DK8: 2968582 | DL8: 176639 | DM8: 1883875 | DN8: 54767 | DO8: 5239129 | DP8: 2761695 | DQ8: 958721 | DR8: 907489 | DS8: 0 | DT8: 0 | DU8: 0 | DV8: 0 | DW8: 0 | DX8: 0 | DY8: 0 | DZ8: 0 | EA8: 0 | EB8: 0 | EC8: 0 | ED8: 0 | EE8: 0 | FM8: =+BF8-SUM(DJ8:FL8) -> -0.1201182678 | FN8: 356148.6507 | FO8: BO | FQ8: -15115476 | FR8: -15115476 | FS8: BO
C9: 7 | D9: MYSTERY LAKE | E9: MY | F9: 1 | G9: BO | H9: Municipality of Rhineland | I9: Oct 29 | T9: 9 | U9: =+U8+1 -> 2 | V9: =+'DATA ENTRY'!A34 ->  | W9: =IF('DATA ENTRY'!F34="",0,1) -> 0 | X9: =IF('DATA ENTRY'!G34="",0,2) -> 0 | Y9: =IF('DATA ENTRY'!H34="",0,3) -> 0 | Z9: =IF('DATA ENTRY'!I34="",0,4) -> 0 | AA9: =IF('DATA ENTRY'!J34="",0,AA1) -> 0 | AB9: =IF('DATA ENTRY'!K34="",0,AB1) -> 0 | AC9: =IF('DATA ENTRY'!L34="",0,AC1) -> 0 | AD9: =IF('DATA ENTRY'!M34="",0,AD1) -> 0 | AE9: =IF('DATA ENTRY'!N34="",0,AE1) -> 0 | AF9: =IF('DATA ENTRY'!O34="",0,AF1) -> 0 | AG9: =IF('DATA ENTRY'!P34="",0,AG1) -> 0 | AH9: =IF('DATA ENTRY'!Q34="",0,AH1) -> 0 | AI9: 0 | AJ9: =HLOOKUP($AI$5,'DATA ENTRY'!$F$16:$Q$56,T9,0) ->  | AN9: 5 | AV9: BR | AW9: BRANDON | AX9: 50605155 | AY9: 764714 | AZ9: 28 | BA9: 51369897 | BB9: 0 | BC9: 924007 | BD9: 1460877.747 | BE9: -54356.96136 | BF9: 49039369.21 | BG9: RM OF CORNWALLIS (116) | BH9: RM OF ELTON (124) | BI9: MUNICIPALITY OF NORTH CYPRESS-LANGFORD (155) | BJ9: MUNICIPALITY OF OAKLAND-WAWANESA (157) | BK9: MUNICIPALITY OF GLENBORO-SOUTH CYPRESS (187) | BL9: RM OF WHITEHEAD (202) | BM9: RIVERDALE MUNICIPALITY (443) | BN9: MUNICIPALITY OF SOURIS-GLENWOOD (449) | BO9: CITY OF BRANDON (500) | BP9: 0 | BQ9: 0 | BR9: 0 | BS9: 0 | BT9: 0 | BU9: 0 | BV9: 0 | BW9: 0 | BX9: 0 | BY9: 0 | BZ9: 0 | CA9: 0 | CB9: 0 | CC9: 0 | DJ9: 2807215 | DK9: 413563 | DL9: 1286713 | DM9: 406844 | DN9: 495018 | DO9: 1863142 | DP9: 118262 | DQ9: 1374 | DR9: 41647239 | DS9: 0 | DT9: 0 | DU9: 0 | DV9: 0 | DW9: 0 | DX9: 0 | DY9: 0 | DZ9: 0 | EA9: 0 | EB9: 0 | EC9: 0 | ED9: 0 | EE9: 0 | FM9: -0.7858028933 | FN9: 468740.1672 | FO9: BR | FQ9: -48274656 | FR9: -48274656 | FS9: BR
C10: 8 | D10: PARK WEST | E10: PA | F10: 10 | G10: BO | H10: Town of Altona | I10: Jul 30 | T10: 10 | U10: =+U9+1 -> 3 | V10: =+'DATA ENTRY'!A35 ->  | W10: =IF('DATA ENTRY'!F35="",0,1) -> 0 | X10: =IF('DATA ENTRY'!G35="",0,2) -> 0 | Y10: =IF('DATA ENTRY'!H35="",0,3) -> 0 | Z10: =IF('DATA ENTRY'!I35="",0,4) -> 0 | AA10: =IF('DATA ENTRY'!J35="",0,AA1) -> 0 | AB10: =IF('DATA ENTRY'!K35="",0,AB1) -> 0 | AC10: =IF('DATA ENTRY'!L35="",0,AC1) -> 0 | AD10: =IF('DATA ENTRY'!M35="",0,AD1) -> 0 | AE10: =IF('DATA ENTRY'!N35="",0,AE1) -> 0 | AF10: =IF('DATA ENTRY'!O35="",0,AF1) -> 0 | AG10: =IF('DATA ENTRY'!P35="",0,AG1) -> 0 | AH10: =IF('DATA ENTRY'!Q35="",0,AH1) -> 0 | AI10: 0 | AJ10: =HLOOKUP($AI$5,'DATA ENTRY'!$F$16:$Q$56,T10,0) ->  | AN10: 6 | AV10: DI | AW10: D.S.F.M. | BG10: 0 | BH10: 0 | BI10: 0 | BJ10: 0 | BK10: 0 | BL10: 0 | BM10: 0 | BN10: 0 | BO10: 0 | BP10: 0 | BQ10: 0 | BR10: 0 | BS10: 0 | BT10: 0 | BU10: 0 | BV10: 0 | BW10: 0 | BX10: 0 | BY10: 0 | BZ10: 0 | CA10: 0 | CB10: 0 | CC10: 0 | DJ10: 0 | DK10: 0 | DL10: 0 | DM10: 0 | DN10: 0 | DO10: 0 | DP10: 0 | DQ10: 0 | DR10: 0 | DS10: 0 | DT10: 0 | DU10: 0 | DV10: 0 | DW10: 0 | DX10: 0 | DY10: 0 | DZ10: 0 | EA10: 0 | EB10: 0 | EC10: 0 | ED10: 0 | EE10: 0 | FM10: 0 | FN10: 0 | FO10: DI | FP10: No DSFM | FQ10: 0 | FR10: 0 | FS10: DI | FU10: Sum of ratios page + control (*) | FW10: =+FW7-FU13 -> 1095862242
C11: 9 | D11: PEMBINA TRAILS | E11: PE | F11: 3 | G11: BO | H11: R.M. of Piney | I11: Oct 29 | T11: 11 | U11: 4 | V11: =+'DATA ENTRY'!A36 ->  | W11: =IF('DATA ENTRY'!F36="",0,1) -> 0 | X11: =IF('DATA ENTRY'!G36="",0,2) -> 0 | Y11: =IF('DATA ENTRY'!H36="",0,3) -> 0 | Z11: =IF('DATA ENTRY'!I36="",0,4) -> 0 | AA11: =IF('DATA ENTRY'!J36="",0,AA1) -> 0 | AB11: =IF('DATA ENTRY'!K36="",0,AB1) -> 0 | AC11: =IF('DATA ENTRY'!L36="",0,AC1) -> 0 | AD11: =IF('DATA ENTRY'!M36="",0,AD1) -> 0 | AE11: =IF('DATA ENTRY'!N36="",0,AE1) -> 0 | AF11: =IF('DATA ENTRY'!O36="",0,AF1) -> 0 | AG11: =IF('DATA ENTRY'!P36="",0,AG1) -> 0 | AH11: =IF('DATA ENTRY'!Q36="",0,AH1) -> 0 | AI11: 0 | AJ11: =HLOOKUP($AI$5,'DATA ENTRY'!$F$16:$Q$56,T11,0) ->  | AN11: 7 | AU11: W/O | AV11: EV | AW11: EVERGREEN | BA11: 13559278 | BC11: 1501499 | BD11: 526523.04 | BF11: 11531255.96 | BG11: MUNICIPALITY OF BIFROST-RIVERTON (105) | BH11: RM OF GIMLI (129) | BI11: RM OF ROCKWOOD (168) | BJ11: RM OF ST. ANDREWS (174) | BK11: TOWN OF ARBORG (300) | BL11: VILLAGE OF DUNNOTTAR (311) | BM11: TOWN OF WINNIPEG BEACH (465) | BN11: RM OF ARMSTRONG (602) | BO11: RM OF FISHER (605) | BP11: 0 | BQ11: 0 | BR11: 0 | BS11: 0 | BT11: 0 | BU11: 0 | BV11: 0 | BW11: 0 | BX11: 0 | BY11: 0 | BZ11: 0 | CA11: 0 | CB11: 0 | CC11: 0 | DJ11: 2292850 | DK11: 5766741 | DL11: 3966 | DM11: 410941 | DN11: 572769 | DO11: 881108 | DP11: 1057158 | DQ11: 544328 | DR11: 1395 | DS11: 0 | DT11: 0 | DU11: 0 | DV11: 0 | DW11: 0 | DX11: 0 | DY11: 0 | DZ11: 0 | EA11: 0 | EB11: 0 | EC11: 0 | ED11: 0 | EE11: 0 | FM11: -0.03999999911 | FN11: 260654.54 | FO11: EV | FP11: No DSFM | FQ11: -11531256 | FR11: -11531256 | FS11: EV | FU11: =SUM(FM7:FM42)+SUM(FQ7:FQ42) -> -1054642815
C12: 10 | D12: PINE CREEK | E12: PI | F12: 7 | G12: BO | H12: R.M. of Stuartburn | I12: Oct 29 | T12: 12 | U12: 5 | V12: =+'DATA ENTRY'!A37 ->  | W12: =IF('DATA ENTRY'!F37="",0,1) -> 0 | X12: =IF('DATA ENTRY'!G37="",0,2) -> 0 | Y12: =IF('DATA ENTRY'!H37="",0,3) -> 0 | Z12: =IF('DATA ENTRY'!I37="",0,4) -> 0 | AA12: =IF('DATA ENTRY'!J37="",0,AA1) -> 0 | AB12: =IF('DATA ENTRY'!K37="",0,AB1) -> 0 | AC12: =IF('DATA ENTRY'!L37="",0,AC1) -> 0 | AD12: =IF('DATA ENTRY'!M37="",0,AD1) -> 0 | AE12: =IF('DATA ENTRY'!N37="",0,AE1) -> 0 | AF12: =IF('DATA ENTRY'!O37="",0,AF1) -> 0 | AG12: =IF('DATA ENTRY'!P37="",0,AG1) -> 0 | AH12: =IF('DATA ENTRY'!Q37="",0,AH1) -> 0 | AI12: 0 | AJ12: =HLOOKUP($AI$5,'DATA ENTRY'!$F$16:$Q$56,T12,0) ->  | AN12: 8 | AU12: W/O | AV12: FL | AW12: FLIN FLON | BA12: 5095503 | BC12: 376357 | BD12: 149373.84 | BF12: 4569772.16 | BG12: City of Flin Flon, Municipality | BH12: 0 | BI12: 0 | BJ12: 0 | BK12: 0 | BL12: 0 | BM12: 0 | BN12: 0 | BO12: 0 | BP12: 0 | BQ12: 0 | BR12: 0 | BS12: 0 | BT12: 0 | BU12: 0 | BV12: 0 | BW12: 0 | BX12: 0 | BY12: 0 | BZ12: 0 | CA12: 0 | CB12: 0 | CC12: 0 | DJ12: 4569772.16 | DK12: 0 | DL12: 0 | DM12: 0 | DN12: 0 | DO12: 0 | DP12: 0 | DQ12: 0 | DR12: 0 | DS12: 0 | DT12: 0 | DU12: 0 | DV12: 0 | DW12: 0 | DX12: 0 | DY12: 0 | DZ12: 0 | EA12: 0 | EB12: 0 | EC12: 0 | ED12: 0 | EE12: 0 | FM12: 0 | FN12: 49462.3 | FO12: FL | FP12: No DSFM | FQ12: 0 | FR12: -4569772.16 | FS12: FL | FT12: FL | FU12: =+FR12 -> -4569772.16
C13: 11 | D13: PORTAGE LA PRAIRIE | E13: PO | F13: 8 | G13: BR | H13: R.M. of Cornwallis | I13: Sep 30 | T13: 13 | U13: 6 | V13: =+'DATA ENTRY'!A38 ->  | W13: =IF('DATA ENTRY'!F38="",0,1) -> 0 | X13: =IF('DATA ENTRY'!G38="",0,2) -> 0 | Y13: =IF('DATA ENTRY'!H38="",0,3) -> 0 | Z13: =IF('DATA ENTRY'!I38="",0,4) -> 0 | AA13: =IF('DATA ENTRY'!J38="",0,AA1) -> 0 | AB13: =IF('DATA ENTRY'!K38="",0,AB1) -> 0 | AC13: =IF('DATA ENTRY'!L38="",0,AC1) -> 0 | AD13: =IF('DATA ENTRY'!M38="",0,AD1) -> 0 | AE13: =IF('DATA ENTRY'!N38="",0,AE1) -> 0 | AF13: =IF('DATA ENTRY'!O38="",0,AF1) -> 0 | AG13: =IF('DATA ENTRY'!P38="",0,AG1) -> 0 | AH13: =IF('DATA ENTRY'!Q38="",0,AH1) -> 0 | AI13: 0 | AJ13: =HLOOKUP($AI$5,'DATA ENTRY'!$F$16:$Q$56,T13,0) ->  | AN13: 9 | AV13: FO | AW13: FORT LA BOSSE | AX13: 10579666 | AY13: 11618 | AZ13: -95 | BA13: 10591189 | BB13: 0 | BC13: 459100 | BD13: 410968.6281 | BE13: 3791.345399 | BF13: 9717329.027 | BG13: RM OF ELLICE-ARCHIE (101) | BH13: MUNICIPALITY OF TWO BORDERS (122) | BI13: RM OF PIPESTONE (162) | BJ13: RM OF SIFTON (184) | BK13: RM OF WALLACE-WOODWORTH (199) | BL13: RM OF WHITEHEAD (202) | BM13: TOWN OF VIRDEN (461) | BN13: 0 | BO13: 0 | BP13: 0 | BQ13: 0 | BR13: 0 | BS13: 0 | BT13: 0 | BU13: 0 | BV13: 0 | BW13: 0 | BX13: 0 | BY13: 0 | BZ13: 0 | CA13: 0 | CB13: 0 | CC13: 0 | DJ13: 683633 | DK13: 296388 | DL13: 3588510 | DM13: 827952 | DN13: 2959663 | DO13: 23863 | DP13: 1337320 | DQ13: 0 | DR13: 0 | DS13: 0 | DT13: 0 | DU13: 0 | DV13: 0 | DW13: 0 | DX13: 0 | DY13: 0 | DZ13: 0 | EA13: 0 | EB13: 0 | EC13: 0 | ED13: 0 | EE13: 0 | FM13: 0.02655067109 | FN13: 203524.3081 | FO13: FO | FQ13: -9705711 | FR13: -9705711 | FS13: FO | FU13: =+FU11+FU12 -> -1059212587
C14: 12 | D14: PRAIRIE ROSE | E14: PR | F14: 16 | G14: BR | H14: R.M. of Elton | I14: Oct 29 | T14: 14 | U14: 7 | V14: =+'DATA ENTRY'!A39 ->  | W14: =IF('DATA ENTRY'!F39="",0,1) -> 0 | X14: =IF('DATA ENTRY'!G39="",0,2) -> 0 | Y14: =IF('DATA ENTRY'!H39="",0,3) -> 0 | Z14: =IF('DATA ENTRY'!I39="",0,4) -> 0 | AA14: =IF('DATA ENTRY'!J39="",0,AA1) -> 0 | AB14: =IF('DATA ENTRY'!K39="",0,AB1) -> 0 | AC14: =IF('DATA ENTRY'!L39="",0,AC1) -> 0 | AD14: =IF('DATA ENTRY'!M39="",0,AD1) -> 0 | AE14: =IF('DATA ENTRY'!N39="",0,AE1) -> 0 | AF14: =IF('DATA ENTRY'!O39="",0,AF1) -> 0 | AG14: =IF('DATA ENTRY'!P39="",0,AG1) -> 0 | AH14: =IF('DATA ENTRY'!Q39="",0,AH1) -> 0 | AI14: 0 | AJ14: =HLOOKUP($AI$5,'DATA ENTRY'!$F$16:$Q$56,T14,0) ->  | AN14: 10 | AU14: W/O | AV14: FR | AW14: FRONTIER | BA14: 3679067 | BC14: 159237 | BD14: 105993.36 | BF14: 3413836.64 | BG14: RM OF LAKESHORE (143) | BH14: TOWN OF LEAF RAPIDS (428) | BI14: TOWN OF SNOW LAKE (448) | BJ14: RM OF ALONSA (601) | BK14: TOWN OF CHURCHILL (603) | BL14: RM OF KELSEY (604) | BM14: RM OF GRAHAMDALE (606) | BN14: TOWN OF LYNN LAKE (614) | BO14: TOWN OF GRAND RAPIDS (615) | BP14: RM OF MOUNTAIN (617) | BQ14: TOWN OF GILLAM (619) | BR14: INDIGENOUS AND NORTHERN RELATIONS (700) | BS14: INDIGENOUS AND NORTHERN RELATIONS (701) | BT14: INDIGENOUS AND NORTHERN RELATIONS (702) | BU14: INDIGENOUS AND NORTHERN RELATIONS (703) | BV14: INCORPORATED COMMUNITY OF CROSS LAKE (707) | BW14: INCORPORATED COMMUNITY OF SEYMOURVILLE (708) | BX14: NORWAY HOUSE-NORTHERN AFFAIRS ACT (710) | BY14: PIKWITONEI-NORTHERN AFFAIRS ACT (712) | BZ14: SHERRIDON-NORTHERN AFFAIRS ACT (713) | CA14: INCORPORATED COMMUNITY OF SOUTH INDIAN LAKE (714) | CB14: THICKET PORTAGE-NORTHERN AFFAIRS ACT (715) | CC14: WABOWDEN-NORTHERN AFFAIRS ACT (716) | CD14: CRANE RIVER-NORTHERN AFFAIRS ACT (727) | CE14: MALLARD-NORTHERN AFFAIRS ACT (728) | CF14: MEADOW PORTAGE-NORTHERN AFFAIRS ACT (729) | CG14: SALT POINT-NORTHERN AFFAIRS ACT (731) | CH14: SPENCE LAKE-NORTHERN AFFAIRS ACT (732) | CI14: WATERHEN-NORTHERN AFFAIRS ACT (733) | CJ14: BROCHET-NORTHERN AFFAIRS ACT (734) | CK14: EASTERVILLE-NORTHERN AFFAIRS ACT (736) | CL14: HERB LAKE LANDING-NORTHERN AFFAIRS ACT (738) | CM14: ILFORD-NORTHERN AFFAIRS ACT (739) | CN14: AGHAMING-NORTHERN AFFAIRS ACT (741) | CO14: BERENS RIVER-NORTHERN AFFAIRS ACT (744) | CP14: BISSETT-NORTHERN AFFAIRS ACT (746) | CQ14: DALLAS-RED ROSE-NORTHERN AFFAIRS ACT (747) | CR14: DAUPHIN RIVER-NORTHERN AFFAIRS ACT (748) | CS14: FISHER BAY-NORTHERN AFFAIRS ACT (750) | CT14: HOMEBROOK - PEONAN POINT-NORTHERN AFFAIRS ACT (754) | CU14: LOON STRAITS-NORTHERN AFFAIRS ACT (761) | CV14: MANIGOTAGAN-NORTHERN AFFAIRS ACT (762) | CW14: MATHESON ISLAND-NORTHERN AFFAIRS ACT (763) | CX14: PINE DOCK-NORTHERN AFFAIRS ACT (765) | CY14: PRINCESS HARBOUR-NORTHERN AFFAIRS ACT (766) | CZ14: BADEN-NORTHERN AFFAIRS ACT (781) | DA14: BARROWS-NORTHERN AFFAIRS ACT (782) | DB14: CAMPERVILLE-NORTHERN AFFAIRS ACT (783) | DC14: CORMORANT-NORTHERN AFFAIRS ACT (784) | DD14: DAWSON BAY-NORTHERN AFFAIRS ACT (785) | DE14: DUCK BAY-NORTHERN AFFAIRS ACT (786) | DF14: MOOSE LAKE-NORTHERN AFFAIRS ACT (787) | DG14: NATIONAL MILLS-NORTHERN AFFAIRS ACT (788) | DH14: PELICAN RAPIDS-NORTHERN AFFAIRS ACT (789) | DI14: RED DEER LAKE-NORTHERN AFFAIRS ACT (792) | DJ14: 285102 | DK14: 41196 | DL14: 584375 | DM14: 27178 | DN14: 527603 | DO14: 300574 | DP14: 159253 | DQ14: 62516 | DR14: 181751 | DS14: 23044 | DT14: 113770 | DU14: 2063 | DV14: 86262 | DW14: 2096 | DX14: 6077 | DY14: 60742 | DZ14: 10395 | EA14: 99926 | EB14: 11791 | EC14: 23138 | ED14: 5826 | EE14: 13657 | EF14: 84931 | EG14: 18374 | EH14: 7599 | EI14: 53414 | EJ14: 1147 | EK14: 33282 | EL14: 50163 | EM14: 14811 | EN14: 5648 | EO14: 250 | EP14: 3452 | EQ14: 1773 | ER14: 13852 | ES14: 117023 | ET14: 24171 | EU14: 3372 | EV14: 6459 | EW14: 13070 | EX14: 8589 | EY14: 122778 | EZ14: 55216 | FA14: 23737 | FB14: 2239 | FC14: 963 | FD14: 6095 | FE14: 42215 | FF14: 27152 | FG14: 4032 | FH14: 24484 | FI14: 6679 | FJ14: 1221 | FK14: 5832 | FL14: 1479 | FM14: -0.3599999999 | FN14: 33854.42 | FO14: FR | FP14: No DSFM | FQ14: -2713266 | FR14: -2713266 | FS14: FR
C15: 13 | D15: PRAIRIE SPIRIT | E15: PS | F15: 14 | G15: BR | H15: Municipality of North Cypress-Langford | I15: Sep 30 | T15: 15 | U15: 8 | V15: =+'DATA ENTRY'!A40 ->  | W15: =IF('DATA ENTRY'!F40="",0,1) -> 0 | X15: =IF('DATA ENTRY'!G40="",0,2) -> 0 | Y15: =IF('DATA ENTRY'!H40="",0,3) -> 0 | Z15: =IF('DATA ENTRY'!I40="",0,4) -> 0 | AA15: =IF('DATA ENTRY'!J40="",0,AA1) -> 0 | AB15: =IF('DATA ENTRY'!K40="",0,AB1) -> 0 | AC15: =IF('DATA ENTRY'!L40="",0,AC1) -> 0 | AD15: =IF('DATA ENTRY'!M40="",0,AD1) -> 0 | AE15: =IF('DATA ENTRY'!N40="",0,AE1) -> 0 | AF15: =IF('DATA ENTRY'!O40="",0,AF1) -> 0 | AG15: =IF('DATA ENTRY'!P40="",0,AG1) -> 0 | AH15: =IF('DATA ENTRY'!Q40="",0,AH1) -> 0 | AI15: 0 | AJ15: =HLOOKUP($AI$5,'DATA ENTRY'!$F$16:$Q$56,T15,0) ->  | AN15: 11 | AU15: W/O | AV15: GA | AW15: GARDEN VALLEY | BA15: 21362606 | BC15: 323087 | BD15: 829487.64 | BF15: 20210031.36 | BG15: MUNICIPALITY OF RHINELAND (164) | BH15: RM OF ROLAND (169) | BI15: RM OF STANLEY (190) | BJ15: CITY OF WINKLER (463) | BK15: 0 | BL15: 0 | BM15: 0 | BN15: 0 | BO15: 0 | BP15: 0 | BQ15: 0 | BR15: 0 | BS15: 0 | BT15: 0 | BU15: 0 | BV15: 0 | BW15: 0 | BX15: 0 | BY15: 0 | BZ15: 0 | CA15: 0 | CB15: 0 | CC15: 0 | DJ15: 2705639 | DK15: 368812 | DL15: 6079279 | DM15: 11056301 | DN15: 0 | DO15: 0 | DP15: 0 | DQ15: 0 | DR15: 0 | DS15: 0 | DT15: 0 | DU15: 0 | DV15: 0 | DW15: 0 | DX15: 0 | DY15: 0 | DZ15: 0 | EA15: 0 | EB15: 0 | EC15: 0 | ED15: 0 | EE15: 0 | FM15: 0.3599999994 | FN15: 410613.68 | FO15: GA | FP15: No DSFM | FQ15: -20210031 | FR15: -20210031 | FS15: GA
C16: 14 | D16: RED RIVER VALLEY | E16: RE | F16: 12 | G16: BR | H16: Municipality of Oakland-Wawanesa | I16: Oct 31 | T16: 16 | U16: 9 | V16: =+'DATA ENTRY'!A41 ->  | W16: =IF('DATA ENTRY'!F41="",0,1) -> 0 | X16: =IF('DATA ENTRY'!G41="",0,2) -> 0 | Y16: =IF('DATA ENTRY'!H41="",0,3) -> 0 | Z16: =IF('DATA ENTRY'!I41="",0,4) -> 0 | AA16: =IF('DATA ENTRY'!J41="",0,AA1) -> 0 | AB16: =IF('DATA ENTRY'!K41="",0,AB1) -> 0 | AC16: =IF('DATA ENTRY'!L41="",0,AC1) -> 0 | AD16: =IF('DATA ENTRY'!M41="",0,AD1) -> 0 | AE16: =IF('DATA ENTRY'!N41="",0,AE1) -> 0 | AF16: =IF('DATA ENTRY'!O41="",0,AF1) -> 0 | AG16: =IF('DATA ENTRY'!P41="",0,AG1) -> 0 | AH16: =IF('DATA ENTRY'!Q41="",0,AH1) -> 0 | AI16: 0 | AJ16: =HLOOKUP($AI$5,'DATA ENTRY'!$F$16:$Q$56,T16,0) ->  | AN16: 12 | AV16: HA | AW16: HANOVER | AX16: 37129602 | AY16: 443359 | AZ16: 132 | BA16: 37573093 | BB16: 0 | BC16: 754063 | BD16: 1443517.587 | BE16: 111609.0546 | BF16: 35263903.36 | BG16: RM OF DE SALABERRY (119) | BH16: MUNICIPALITY OF EMERSON-FRANKLIN (127) | BI16: RM OF HANOVER (135) | BJ16: RM OF LA BROQUERIE (138) | BK16: RM OF RITCHOT (165) | BL16: RM OF STE. ANNE (175) | BM16: RM OF TACHE (194) | BN16: TOWN OF NIVERVILLE (340) | BO16: CITY OF STEINBACH (451) | BP16: 0 | BQ16: 0 | BR16: 0 | BS16: 0 | BT16: 0 | BU16: 0 | BV16: 0 | BW16: 0 | BX16: 0 | BY16: 0 | BZ16: 0 | CA16: 0 | CB16: 0 | CC16: 0 | DJ16: 381790 | DK16: 2091 | DL16: 11500017 | DM16: 1360716 | DN16: 606964 | DO16: 1325120 | DP16: 2155491 | DQ16: 3870214 | DR16: 14061502 | DS16: 0 | DT16: 0 | DU16: 0 | DV16: 0 | DW16: 0 | DX16: 0 | DY16: 0 | DZ16: 0 | EA16: 0 | EB16: 0 | EC16: 0 | ED16: 0 | EE16: 0 | FM16: -1.641364813 | FN16: 720486.2067 | FO16: HA | FQ16: -34820546 | FR16: -34820546 | FS16: HA
C17: 15 | D17: RIVER EAST TRANSCONA | E17: RI | F17: 3 | G17: BR | H17: Municipality of Glenboro-South Cypress | I17: Oct 29 | T17: 17 | U17: 10 | V17: =+'DATA ENTRY'!A42 ->  | W17: =IF('DATA ENTRY'!F42="",0,1) -> 0 | X17: =IF('DATA ENTRY'!G42="",0,2) -> 0 | Y17: =IF('DATA ENTRY'!H42="",0,3) -> 0 | Z17: =IF('DATA ENTRY'!I42="",0,4) -> 0 | AA17: =IF('DATA ENTRY'!J42="",0,AA1) -> 0 | AB17: =IF('DATA ENTRY'!K42="",0,AB1) -> 0 | AC17: =IF('DATA ENTRY'!L42="",0,AC1) -> 0 | AD17: =IF('DATA ENTRY'!M42="",0,AD1) -> 0 | AE17: =IF('DATA ENTRY'!N42="",0,AE1) -> 0 | AF17: =IF('DATA ENTRY'!O42="",0,AF1) -> 0 | AG17: =IF('DATA ENTRY'!P42="",0,AG1) -> 0 | AH17: =IF('DATA ENTRY'!Q42="",0,AH1) -> 0 | AI17: 0 | AJ17: =HLOOKUP($AI$5,'DATA ENTRY'!$F$16:$Q$56,T17,0) ->  | AV17: IN | AW17: INTERLAKE | AX17: 21772439 | AY17: 0 | AZ17: 0 | BA17: 21772439 | BB17: 0 | BC17: 808470 | BD17: 845450.54 | BE17: 0 | BF17: 20118518.46 | BG17: RM OF ROCKWOOD (168) | BH17: RM OF ROSSER (172) | BI17: RM OF ST. ANDREWS (174) | BJ17: RM OF ST. LAURENT (178) | BK17: RM OF WEST ST. PAUL (201) | BL17: RM OF WOODLANDS (206) | BM17: TOWN OF TEULON (363) | BN17: TOWN OF STONEWALL (453) | BO17: CITY OF WINNIPEG (590) | BP17: RM OF ARMSTRONG (602) | BQ17: 0 | BR17: 0 | BS17: 0 | BT17: 0 | BU17: 0 | BV17: 0 | BW17: 0 | BX17: 0 | BY17: 0 | BZ17: 0 | CA17: 0 | CB17: 0 | CC17: 0 | DJ17: 6466183 | DK17: 5726894 | DL17: 197002 | DM17: 1337 | DN17: 312608 | DO17: 3171759 | DP17: 605469 | DQ17: 3476421 | DR17: 41568 | DS17: 119277 | DT17: 0 | DU17: 0 | DV17: 0 | DW17: 0 | DX17: 0 | DY17: 0 | DZ17: 0 | EA17: 0 | EB17: 0 | EC17: 0 | ED17: 0 | EE17: 0 | FM17: 0.4600000009 | FN17: 418539.58 | FO17: IN | FP17: No DSFM | FQ17: -20118518 | FR17: -20118518 | FS17: IN
C18: 16 | D18: ROLLING RIVER | E18: RO | F18: 9 | G18: BR | H18: R.M. of Whitehead | I18: Oct 31 | T18: 18 | U18: 11 | V18: =+'DATA ENTRY'!A43 ->  | W18: =IF('DATA ENTRY'!F43="",0,1) -> 0 | X18: =IF('DATA ENTRY'!G43="",0,2) -> 0 | Y18: =IF('DATA ENTRY'!H43="",0,3) -> 0 | Z18: =IF('DATA ENTRY'!I43="",0,4) -> 0 | AA18: =IF('DATA ENTRY'!J43="",0,AA1) -> 0 | AB18: =IF('DATA ENTRY'!K43="",0,AB1) -> 0 | AC18: =IF('DATA ENTRY'!L43="",0,AC1) -> 0 | AD18: =IF('DATA ENTRY'!M43="",0,AD1) -> 0 | AE18: =IF('DATA ENTRY'!N43="",0,AE1) -> 0 | AF18: =IF('DATA ENTRY'!O43="",0,AF1) -> 0 | AG18: =IF('DATA ENTRY'!P43="",0,AG1) -> 0 | AH18: =IF('DATA ENTRY'!Q43="",0,AH1) -> 0 | AI18: 0 | AJ18: =HLOOKUP($AI$5,'DATA ENTRY'!$F$16:$Q$56,T18,0) ->  | AV18: KE | AW18: KELSEY | AX18: 4782792 | AY18: 0 | AZ18: 0 | BA18: 4782792 | BB18: 0 | BC18: 154704 | BD18: 623997.86 | BE18: 0 | BF18: 4004090.14 | BG18: TOWN OF THE PAS (457) | BH18: RM OF KELSEY (604) | BI18: 0 | BJ18: 0 | BK18: 0 | BL18: 0 | BM18: 0 | BN18: 0 | BO18: 0 | BP18: 0 | BQ18: 0 | BR18: 0 | BS18: 0 | BT18: 0 | BU18: 0 | BV18: 0 | BW18: 0 | BX18: 0 | BY18: 0 | BZ18: 0 | CA18: 0 | CB18: 0 | CC18: 0 | DJ18: 2863039 | DK18: 1141051 | DL18: 0 | DM18: 0 | DN18: 0 | DO18: 0 | DP18: 0 | DQ18: 0 | DR18: 0 | DS18: 0 | DT18: 0 | DU18: 0 | DV18: 0 | DW18: 0 | DX18: 0 | DY18: 0 | DZ18: 0 | EA18: 0 | EB18: 0 | EC18: 0 | ED18: 0 | EE18: 0 | FM18: 0.1400000006 | FN18: 530217.68 | FO18: KE | FQ18: -4004090 | FR18: -4004090 | FS18: KE
C19: 17 | D19: SEINE RIVER | E19: SE | F19: 10 | G19: BR | H19: Riverdale Municipality | I19: Sep 30 | T19: 19 | U19: 12 | V19: =+'DATA ENTRY'!A44 ->  | W19: =IF('DATA ENTRY'!F44="",0,1) -> 0 | X19: =IF('DATA ENTRY'!G44="",0,2) -> 0 | Y19: =IF('DATA ENTRY'!H44="",0,3) -> 0 | Z19: =IF('DATA ENTRY'!I44="",0,4) -> 0 | AA19: =IF('DATA ENTRY'!J44="",0,AA1) -> 0 | AB19: =IF('DATA ENTRY'!K44="",0,AB1) -> 0 | AC19: =IF('DATA ENTRY'!L44="",0,AC1) -> 0 | AD19: =IF('DATA ENTRY'!M44="",0,AD1) -> 0 | AE19: =IF('DATA ENTRY'!N44="",0,AE1) -> 0 | AF19: =IF('DATA ENTRY'!O44="",0,AF1) -> 0 | AG19: =IF('DATA ENTRY'!P44="",0,AG1) -> 0 | AH19: =IF('DATA ENTRY'!Q44="",0,AH1) -> 0 | AI19: 0 | AJ19: =HLOOKUP($AI$5,'DATA ENTRY'!$F$16:$Q$56,T19,0) ->  | AV19: LA | AW19: LAKESHORE | AX19: 5677411 | AY19: 0 | AZ19: 0 | BA19: 5677411 | BB19: 0 | BC19: 414194 | BD19: 220289 | BF19: 5042928 | BG19: MUNICIPALITY OF BIFROST-RIVERTON (105) | BH19: RM OF COLDWELL (115) | BI19: RM OF ROCKWOOD (168) | BJ19: RM OF ST. LAURENT (178) | BK19: MUNICIPALITY OF WEST INTERLAKE (185) | BL19: RM OF ARMSTRONG (602) | BM19: RM OF FISHER (605) | BN19: RM OF GRAHAMDALE (606) | BO19: 0 | BP19: 0 | BQ19: 0 | BR19: 0 | BS19: 0 | BT19: 0 | BU19: 0 | BV19: 0 | BW19: 0 | BX19: 0 | BY19: 0 | BZ19: 0 | CA19: 0 | CB19: 0 | CC19: 0 | DJ19: 32935 | DK19: 918775 | DL19: 8509 | DM19: 3550 | DN19: 1369798 | DO19: 469672 | DP19: 1370887 | DQ19: 868802 | DR19: 0 | DS19: 0 | DT19: 0 | DU19: 0 | DV19: 0 | DW19: 0 | DX19: 0 | DY19: 0 | DZ19: 0 | EA19: 0 | EB19: 0 | EC19: 0 | ED19: 0 | EE19: 0 | FM19: 0 | FN19: 109054 | FO19: LA | FQ19: -5042928 | FR19: -5042928 | FS19: LA
C20: 18 | D20: SEVEN OAKS | E20: SO | F20: 3 | G20: BR | H20: Municipality of Souris-Glenwood | I20: Oct 31 | T20: 20 | U20: 13 | V20: =+'DATA ENTRY'!A45 ->  | W20: =IF('DATA ENTRY'!F45="",0,1) -> 0 | X20: =IF('DATA ENTRY'!G45="",0,2) -> 0 | Y20: =IF('DATA ENTRY'!H45="",0,3) -> 0 | Z20: =IF('DATA ENTRY'!I45="",0,4) -> 0 | AA20: =IF('DATA ENTRY'!J45="",0,AA1) -> 0 | AB20: =IF('DATA ENTRY'!K45="",0,AB1) -> 0 | AC20: =IF('DATA ENTRY'!L45="",0,AC1) -> 0 | AD20: =IF('DATA ENTRY'!M45="",0,AD1) -> 0 | AE20: =IF('DATA ENTRY'!N45="",0,AE1) -> 0 | AF20: =IF('DATA ENTRY'!O45="",0,AF1) -> 0 | AG20: =IF('DATA ENTRY'!P45="",0,AG1) -> 0 | AH20: =IF('DATA ENTRY'!Q45="",0,AH1) -> 0 | AI20: 0 | AJ20: =HLOOKUP($AI$5,'DATA ENTRY'!$F$16:$Q$56,T20,0) ->  | AV20: LO | AW20: LORD SELKIRK | AX20: 35396801 | AY20: 0 | AZ20: 0 | BA20: 35396801 | BB20: 0 | BC20: 2534539 | BD20: 1374501.6 | BE20: 0 | BF20: 31487760.4 | BG20: RM OF BROKENHEAD (110) | BH20: RM OF ST. ANDREWS (174) | BI20: RM OF ST. CLEMENTS (176) | BJ20: RM OF VICTORIA BEACH (198) | BK20: CITY OF SELKIRK (447) | BL20: RM OF ALEXANDER (600) | BM20: 0 | BN20: 0 | BO20: 0 | BP20: 0 | BQ20: 0 | BR20: 0 | BS20: 0 | BT20: 0 | BU20: 0 | BV20: 0 | BW20: 0 | BX20: 0 | BY20: 0 | BZ20: 0 | CA20: 0 | CB20: 0 | CC20: 0 | DJ20: 78403 | DK20: 10857271 | DL20: 7947798 | DM20: 2051486 | DN20: 7882827 | DO20: 2669976 | DP20: 0 | DQ20: 0 | DR20: 0 | DS20: 0 | DT20: 0 | DU20: 0 | DV20: 0 | DW20: 0 | DX20: 0 | DY20: 0 | DZ20: 0 | EA20: 0 | EB20: 0 | EC20: 0 | ED20: 0 | EE20: 0 | FM20: -0.6000000015 | FN20: 680446.6 | FO20: LO | FQ20: -31487761 | FR20: -31487761 | FS20: LO
C21: 19 | D21: SOUTHWEST HORIZON | E21: SR | F21: 13 | G21: BR | H21: City of Brandon | I21: Jun 30 | T21: 21 | U21: 14 | V21: =+'DATA ENTRY'!A46 ->  | W21: =IF('DATA ENTRY'!F46="",0,1) -> 0 | X21: =IF('DATA ENTRY'!G46="",0,2) -> 0 | Y21: =IF('DATA ENTRY'!H46="",0,3) -> 0 | Z21: =IF('DATA ENTRY'!I46="",0,4) -> 0 | AA21: =IF('DATA ENTRY'!J46="",0,AA1) -> 0 | AB21: =IF('DATA ENTRY'!K46="",0,AB1) -> 0 | AC21: =IF('DATA ENTRY'!L46="",0,AC1) -> 0 | AD21: =IF('DATA ENTRY'!M46="",0,AD1) -> 0 | AE21: =IF('DATA ENTRY'!N46="",0,AE1) -> 0 | AF21: =IF('DATA ENTRY'!O46="",0,AF1) -> 0 | AG21: =IF('DATA ENTRY'!P46="",0,AG1) -> 0 | AH21: =IF('DATA ENTRY'!Q46="",0,AH1) -> 0 | AI21: 0 | AJ21: =HLOOKUP($AI$5,'DATA ENTRY'!$F$16:$Q$56,T21,0) ->  | AV21: LR | AW21: LOUIS RIEL | AX21: 108565071 | AY21: 12866508 | AZ21: 154 | BA21: 121431733 | BB21: 0 | BC21: 3270502 | BD21: 4457595.17 | BE21: -293677.5041 | BF21: 113997313.3 | BG21: RM OF RITCHOT (165) | BH21: RM OF SPRINGFIELD (189) | BI21: CITY OF WINNIPEG (590) | BJ21: 0 | BK21: 0 | BL21: 0 | BM21: 0 | BN21: 0 | BO21: 0 | BP21: 0 | BQ21: 0 | BR21: 0 | BS21: 0 | BT21: 0 | BU21: 0 | BV21: 0 | BW21: 0 | BX21: 0 | BY21: 0 | BZ21: 0 | CA21: 0 | CB21: 0 | CC21: 0 | DJ21: 265600 | DK21: 382933 | DL21: 113348780 | DM21: 0 | DN21: 0 | DO21: 0 | DP21: 0 | DQ21: 0 | DR21: 0 | DS21: 0 | DT21: 0 | DU21: 0 | DV21: 0 | DW21: 0 | DX21: 0 | DY21: 0 | DZ21: 0 | EA21: 0 | EB21: 0 | EC21: 0 | ED21: 0 | EE21: 0 | FM21: 0.3346388191 | FN21: 2343455.63 | FO21: LR | FQ21: -101130805 | FR21: -101130805 | FS21: LR
C22: 20 | D22: ST. JAMES-ASSINIBOIA | E22: ST | F22: 2 | G22: FO | H22: Rm of Ellice-Archie | I22: Oct 31 | T22: 22 | U22: 15 | V22: =+'DATA ENTRY'!A47 ->  | W22: =IF('DATA ENTRY'!F47="",0,1) -> 0 | X22: =IF('DATA ENTRY'!G47="",0,2) -> 0 | Y22: =IF('DATA ENTRY'!H47="",0,3) -> 0 | Z22: =IF('DATA ENTRY'!I47="",0,4) -> 0 | AA22: =IF('DATA ENTRY'!J47="",0,AA1) -> 0 | AB22: =IF('DATA ENTRY'!K47="",0,AB1) -> 0 | AC22: =IF('DATA ENTRY'!L47="",0,AC1) -> 0 | AD22: =IF('DATA ENTRY'!M47="",0,AD1) -> 0 | AE22: =IF('DATA ENTRY'!N47="",0,AE1) -> 0 | AF22: =IF('DATA ENTRY'!O47="",0,AF1) -> 0 | AG22: =IF('DATA ENTRY'!P47="",0,AG1) -> 0 | AH22: =IF('DATA ENTRY'!Q47="",0,AH1) -> 0 | AI22: 0 | AJ22: =HLOOKUP($AI$5,'DATA ENTRY'!$F$16:$Q$56,T22,0) ->  | AV22: MO | AW22: MOUNTAIN VIEW | AX22: 18519387 | AY22: 0 | AZ22: 0 | BA22: 18519387 | BB22: 0 | BC22: 345180 | BD22: 718109.58 | BE22: 0 | BF22: 17456097.42 | BG22: RM OF DAUPHIN (118) | BH22: MUNICIPALITY OF ETHELBERT (126) | BI22: GRANDVIEW MUNICIPALITY (132) | BJ22: RM OF LAKESHORE (143) | BK22: MUNICIPALITY OF MCCREARY (147) | BL22: RM OF MOSSEY RIVER (154) | BM22: RM OF RIDING MOUNTAIN WEST (181) | BN22: MUNICIPALITY OF HILLSBURG-ROBLIN-SHELL RIVER (182) | BO22: GILBERT PLAINS MUNICIPALITY (323) | BP22: CITY OF DAUPHIN (411) | BQ22: RM OF MOUNTAIN (617) | BR22: 0 | BS22: 0 | BT22: 0 | BU22: 0 | BV22: 0 | BW22: 0 | BX22: 0 | BY22: 0 | BZ22: 0 | CA22: 0 | CB22: 0 | CC22: 0 | DJ22: 2777522 | DK22: 403415 | DL22: 1626136 | DM22: 825490 | DN22: 7299 | DO22: 692979 | DP22: 873970 | DQ22: 3411645 | DR22: 1881393 | DS22: 4762287 | DT22: 193960 | DU22: 0 | DV22: 0 | DW22: 0 | DX22: 0 | DY22: 0 | DZ22: 0 | EA22: 0 | EB22: 0 | EC22: 0 | ED22: 0 | EE22: 0 | FM22: 1.419999998 | FN22: 354984.32 | FO22: MO | FQ22: -17456096 | FR22: -17456096 | FS22: MO
C23: 21 | D23: SUNRISE | E23: SU | F23: 12 | G23: FO | H23: Municipality of Two Borders | I23: Oct 31 | T23: 23 | U23: 16 | V23: =+'DATA ENTRY'!A48 ->  | W23: =IF('DATA ENTRY'!F48="",0,1) -> 0 | X23: =IF('DATA ENTRY'!G48="",0,2) -> 0 | Y23: =IF('DATA ENTRY'!H48="",0,3) -> 0 | Z23: =IF('DATA ENTRY'!I48="",0,4) -> 0 | AA23: =IF('DATA ENTRY'!J48="",0,AA1) -> 0 | AB23: =IF('DATA ENTRY'!K48="",0,AB1) -> 0 | AC23: =IF('DATA ENTRY'!L48="",0,AC1) -> 0 | AD23: =IF('DATA ENTRY'!M48="",0,AD1) -> 0 | AE23: =IF('DATA ENTRY'!N48="",0,AE1) -> 0 | AF23: =IF('DATA ENTRY'!O48="",0,AF1) -> 0 | AG23: =IF('DATA ENTRY'!P48="",0,AG1) -> 0 | AH23: =IF('DATA ENTRY'!Q48="",0,AH1) -> 0 | AI23: 0 | AJ23: =HLOOKUP($AI$5,'DATA ENTRY'!$F$16:$Q$56,T23,0) ->  | AV23: MY | AW23: MYSTERY LAKE | AX23: 9336362 | AY23: 238558 | AZ23: 151 | BA23: 9575071 | BB23: 0 | BC23: 543025 | BD23: 185798.3278 | BE23: -59816.69445 | BF23: 8906064.367 | BG23: City of Thompson | BH23: 0 | BI23: 0 | BJ23: 0 | BK23: 0 | BL23: 0 | BM23: 0 | BN23: 0 | BO23: 0 | BP23: 0 | BQ23: 0 | BR23: 0 | BS23: 0 | BT23: 0 | BU23: 0 | BV23: 0 | BW23: 0 | BX23: 0 | BY23: 0 | BZ23: 0 | CA23: 0 | CB23: 0 | CC23: 0 | DJ23: 8906064.367 | DK23: 0 | DL23: 0 | DM23: 0 | DN23: 0 | DO23: 0 | DP23: 0 | DQ23: 0 | DR23: 0 | DS23: 0 | DT23: 0 | DU23: 0 | DV23: 0 | DW23: 0 | DX23: 0 | DY23: 0 | DZ23: 0 | EA23: 0 | EB23: 0 | EC23: 0 | ED23: 0 | EE23: 0 | FM23: 0 | FN23: 111700.2078 | FO23: MY | FP23: ok 1 mun. | FQ23: -8667506.367 | FR23: -8667506.367 | FS23: MY
C24: 22 | D24: TURTLE RIVER | E24: TR | F24: 7 | G24: FO | H24: R.M. of Pipestone | I24: Oct 31 | T24: 24 | U24: 17 | V24: =+'DATA ENTRY'!A49 ->  | W24: =IF('DATA ENTRY'!F49="",0,1) -> 0 | X24: =IF('DATA ENTRY'!G49="",0,2) -> 0 | Y24: =IF('DATA ENTRY'!H49="",0,3) -> 0 | Z24: =IF('DATA ENTRY'!I49="",0,4) -> 0 | AA24: =IF('DATA ENTRY'!J49="",0,AA1) -> 0 | AB24: =IF('DATA ENTRY'!K49="",0,AB1) -> 0 | AC24: =IF('DATA ENTRY'!L49="",0,AC1) -> 0 | AD24: =IF('DATA ENTRY'!M49="",0,AD1) -> 0 | AE24: =IF('DATA ENTRY'!N49="",0,AE1) -> 0 | AF24: =IF('DATA ENTRY'!O49="",0,AF1) -> 0 | AG24: =IF('DATA ENTRY'!P49="",0,AG1) -> 0 | AH24: =IF('DATA ENTRY'!Q49="",0,AH1) -> 0 | AI24: 0 | AJ24: =HLOOKUP($AI$5,'DATA ENTRY'!$F$16:$Q$56,T24,0) ->  | AV24: PA | AW24: PARK WEST | AX24: 11236411 | AY24: 264516 | AZ24: -86 | BA24: 11500841 | BB24: 0 | BC24: 769286 | BD24: 442764.5059 | BE24: -64636.55169 | BF24: 10353427.05 | BG24: RM OF ELLICE-ARCHIE (101) | BH24: RM OF OAKVIEW (107) | BI24: RM OF RIDING MOUNTAIN WEST (181) | BJ24: RM OF YELLOWHEAD (183) | BK24: RM OF WALLACE-WOODWORTH (199) | BL24: HAMIOTA MUNICIPALITY (331) | BM24: ROSSBURN MUNICIPALITY (353) | BN24: PRAIRIE VIEW MUNICIPALITY (403) | BO24: MUNICIPALITY OF RUSSELL-BINSCARTH (445) | BP24: MUNICIPALITY OF HARRISON PARK (609) | BQ24: 0 | BR24: 0 | BS24: 0 | BT24: 0 | BU24: 0 | BV24: 0 | BW24: 0 | BX24: 0 | BY24: 0 | BZ24: 0 | CA24: 0 | CB24: 0 | CC24: 0 | DJ24: 522417 | DK24: 204514 | DL24: 1303705 | DM24: 1562118 | DN24: 327244 | DO24: 1390853 | DP24: 706899 | DQ24: 2502608 | DR24: 1548823 | DS24: 284246 | DT24: 0 | DU24: 0 | DV24: 0 | DW24: 0 | DX24: 0 | DY24: 0 | DZ24: 0 | EA24: 0 | EB24: 0 | EC24: 0 | ED24: 0 | EE24: 0 | FM24: 0.04582572356 | FN24: 222453.4259 | FO24: PA | FQ24: -10088911 | FR24: -10088911 | FS24: PA
C25: 23 | D25: WINNIPEG | E25: WI | F25: 1 | G25: FO | H25: R.M. of Sifton | I25: Oct 31 | T25: 25 | U25: 18 | V25: =+'DATA ENTRY'!A50 ->  | W25: =IF('DATA ENTRY'!F50="",0,1) -> 0 | X25: =IF('DATA ENTRY'!G50="",0,2) -> 0 | Y25: =IF('DATA ENTRY'!H50="",0,3) -> 0 | Z25: =IF('DATA ENTRY'!I50="",0,4) -> 0 | AA25: =IF('DATA ENTRY'!J50="",0,AA1) -> 0 | AB25: =IF('DATA ENTRY'!K50="",0,AB1) -> 0 | AC25: =IF('DATA ENTRY'!L50="",0,AC1) -> 0 | AD25: =IF('DATA ENTRY'!M50="",0,AD1) -> 0 | AE25: =IF('DATA ENTRY'!N50="",0,AE1) -> 0 | AF25: =IF('DATA ENTRY'!O50="",0,AF1) -> 0 | AG25: =IF('DATA ENTRY'!P50="",0,AG1) -> 0 | AH25: =IF('DATA ENTRY'!Q50="",0,AH1) -> 0 | AI25: 0 | AJ25: =HLOOKUP($AI$5,'DATA ENTRY'!$F$16:$Q$56,T25,0) ->  | AV25: PE | AW25: PEMBINA TRAILS | AX25: 116293843 | AY25: 1429246 | AZ25: 220 | BA25: 117723309 | BB25: 0 | BC25: 2429845 | BD25: 4478525.094 | BE25: 101005.9594 | BF25: 110713932.9 | BG25: RM OF MACDONALD (146) | BH25: RM OF HEADINGLEY (208) | BI25: CITY OF WINNIPEG (590) | BJ25: 0 | BK25: 0 | BL25: 0 | BM25: 0 | BN25: 0 | BO25: 0 | BP25: 0 | BQ25: 0 | BR25: 0 | BS25: 0 | BT25: 0 | BU25: 0 | BV25: 0 | BW25: 0 | BX25: 0 | BY25: 0 | BZ25: 0 | CA25: 0 | CB25: 0 | CC25: 0 | DJ25: 5942 | DK25: 634086 | DL25: 110073905 | DM25: 0 | DN25: 0 | DO25: 0 | DP25: 0 | DQ25: 0 | DR25: 0 | DS25: 0 | DT25: 0 | DU25: 0 | DV25: 0 | DW25: 0 | DX25: 0 | DY25: 0 | DZ25: 0 | EA25: 0 | EB25: 0 | EC25: 0 | ED25: 0 | EE25: 0 | FM25: -0.05327627063 | FN25: 2198253.094 | FO25: PE | FQ25: -109284687 | FR25: -109284687 | FS25: PE
G26: FO | H26: R.M. of Wallace-Woodworth | I26: Oct 29 | T26: 26 | U26: 19 | V26: =+'DATA ENTRY'!A51 ->  | W26: =IF('DATA ENTRY'!F51="",0,1) -> 0 | X26: =IF('DATA ENTRY'!G51="",0,2) -> 0 | Y26: =IF('DATA ENTRY'!H51="",0,3) -> 0 | Z26: =IF('DATA ENTRY'!I51="",0,4) -> 0 | AA26: =IF('DATA ENTRY'!J51="",0,AA1) -> 0 | AB26: =IF('DATA ENTRY'!K51="",0,AB1) -> 0 | AC26: =IF('DATA ENTRY'!L51="",0,AC1) -> 0 | AD26: =IF('DATA ENTRY'!M51="",0,AD1) -> 0 | AE26: =IF('DATA ENTRY'!N51="",0,AE1) -> 0 | AF26: =IF('DATA ENTRY'!O51="",0,AF1) -> 0 | AG26: =IF('DATA ENTRY'!P51="",0,AG1) -> 0 | AH26: =IF('DATA ENTRY'!Q51="",0,AH1) -> 0 | AI26: 0 | AJ26: =HLOOKUP($AI$5,'DATA ENTRY'!$F$16:$Q$56,T26,0) ->  | AV26: PI | AW26: PINE CREEK | AX26: 8394079 | AY26: 31613 | AZ26: -125 | BA26: 8425567 | BB26: 0 | BC26: 312678 | BD26: 326251.7775 | BE26: 15376.13805 | BF26: 7771261.084 | BG26: MUNICIPALITY OF GLENELLA-LANSDOWNE (142) | BH26: MUNICIPALITY OF NORTH CYPRESS-LANGFORD (155) | BI26: MUNICIPALITY OF NORTH NORFOLK (156) | BJ26: RM OF PORTAGE LA PRAIRIE (163) | BK26: MUNICIPALITY OF NORFOLK TREHERNE (188) | BL26: RM OF VICTORIA (197) | BM26: MUNICIPALITY OF WESTLAKE-GLADSTONE (200) | BN26: 0 | BO26: 0 | BP26: 0 | BQ26: 0 | BR26: 0 | BS26: 0 | BT26: 0 | BU26: 0 | BV26: 0 | BW26: 0 | BX26: 0 | BY26: 0 | BZ26: 0 | CA26: 0 | CB26: 0 | CC26: 0 | DJ26: 281254 | DK26: 104072 | DL26: 4287454 | DM26: 30485 | DN26: 146258 | DO26: 87905 | DP26: 2833833 | DQ26: 0 | DR26: 0 | DS26: 0 | DT26: 0 | DU26: 0 | DV26: 0 | DW26: 0 | DX26: 0 | DY26: 0 | DZ26: 0 | EA26: 0 | EB26: 0 | EC26: 0 | ED26: 0 | EE26: 0 | FM26: 0.08445885312 | FN26: 161662.2975 | FO26: PI | FQ26: -7739648 | FR26: -7739648 | FS26: PI
G27: FO | H27: R.M. of Whitehead | I27: Oct 31 | T27: 27 | U27: 20 | V27: =+'DATA ENTRY'!A52 ->  | W27: =IF('DATA ENTRY'!F52="",0,1) -> 0 | X27: =IF('DATA ENTRY'!G52="",0,2) -> 0 | Y27: =IF('DATA ENTRY'!H52="",0,3) -> 0 | Z27: =IF('DATA ENTRY'!I52="",0,4) -> 0 | AA27: =IF('DATA ENTRY'!J52="",0,AA1) -> 0 | AB27: =IF('DATA ENTRY'!K52="",0,AB1) -> 0 | AC27: =IF('DATA ENTRY'!L52="",0,AC1) -> 0 | AD27: =IF('DATA ENTRY'!M52="",0,AD1) -> 0 | AE27: =IF('DATA ENTRY'!N52="",0,AE1) -> 0 | AF27: =IF('DATA ENTRY'!O52="",0,AF1) -> 0 | AG27: =IF('DATA ENTRY'!P52="",0,AG1) -> 0 | AH27: =IF('DATA ENTRY'!Q52="",0,AH1) -> 0 | AI27: 0 | AJ27: =HLOOKUP($AI$5,'DATA ENTRY'!$F$16:$Q$56,T27,0) ->  | AV27: PO | AW27: PORTAGE LA PRAIRIE | AX27: 19983084 | AY27: 112844 | AZ27: 129 | BA27: 20096057 | BB27: 0 | BC27: 270928 | BD27: 768386.1304 | BE27: 9606.822397 | BF27: 19047136.05 | BG27: RM OF GREY (133) | BH27: MUNICIPALITY OF NORTH NORFOLK (156) | BI27: RM OF PORTAGE LA PRAIRIE (163) | BJ27: RM OF ST. FRANCOIS XAVIER (177) | BK27: MUNICIPALITY OF NORFOLK TREHERNE (188) | BL27: MUNICIPALITY OF WESTLAKE-GLADSTONE (200) | BM27: RM OF WOODLANDS (206) | BN27: CITY PORTAGE LA PRAIRIE (550) | BO27: 0 | BP27: 0 | BQ27: 0 | BR27: 0 | BS27: 0 | BT27: 0 | BU27: 0 | BV27: 0 | BW27: 0 | BX27: 0 | BY27: 0 | BZ27: 0 | CA27: 0 | CB27: 0 | CC27: 0 | DJ27: 11908 | DK27: 85656 | DL27: 10481182 | DM27: 114963 | DN27: 1173 | DO27: 371823 | DP27: 122629 | DQ27: 7857802 | DR27: 0 | DS27: 0 | DT27: 0 | DU27: 0 | DV27: 0 | DW27: 0 | DX27: 0 | DY27: 0 | DZ27: 0 | EA27: 0 | EB27: 0 | EC27: 0 | ED27: 0 | EE27: 0 | FM27: 0.04718580842 | FN27: 376560.6504 | FO27: PO | FQ27: -18934292 | FR27: -18934292 | FS27: PO
G28: FO | H28: Town of Virden | I28: Oct 29 | T28: 28 | U28: 21 | V28: =+'DATA ENTRY'!A53 ->  | W28: =IF('DATA ENTRY'!F53="",0,1) -> 0 | X28: =IF('DATA ENTRY'!G53="",0,2) -> 0 | Y28: =IF('DATA ENTRY'!H53="",0,3) -> 0 | Z28: =IF('DATA ENTRY'!I53="",0,4) -> 0 | AA28: =IF('DATA ENTRY'!J53="",0,AA1) -> 0 | AB28: =IF('DATA ENTRY'!K53="",0,AB1) -> 0 | AC28: =IF('DATA ENTRY'!L53="",0,AC1) -> 0 | AD28: =IF('DATA ENTRY'!M53="",0,AD1) -> 0 | AE28: =IF('DATA ENTRY'!N53="",0,AE1) -> 0 | AF28: =IF('DATA ENTRY'!O53="",0,AF1) -> 0 | AG28: =IF('DATA ENTRY'!P53="",0,AG1) -> 0 | AH28: =IF('DATA ENTRY'!Q53="",0,AH1) -> 0 | AI28: 0 | AJ28: =HLOOKUP($AI$5,'DATA ENTRY'!$F$16:$Q$56,T28,0) ->  | AV28: PR | AW28: PRAIRIE ROSE | AX28: 18950357 | AY28: 562439 | AZ28: -34 | BA28: 19512762 | BB28: 0 | BC28: 1085297 | BD28: 743288.0227 | BE28: 93918.1907 | BF28: 17590258.79 | BG28: RM OF CARTIER (112) | BH28: RM OF DUFFERIN (120) | BI28: RM OF GREY (133) | BJ28: MUNICIPALITY OF LORNE (144) | BK28: RM OF MACDONALD (146) | BL28: RM OF MORRIS (152) | BM28: MUNICIPALITY OF PEMBINA (161) | BN28: RM OF PORTAGE LA PRAIRIE (163) | BO28: RM OF ROLAND (169) | BP28: RM OF ST. FRANCOIS XAVIER (177) | BQ28: RM OF ST. LAURENT (178) | BR28: MUNICIPALITY OF NORFOLK TREHERNE (188) | BS28: RM OF STANLEY (190) | BT28: RM OF THOMPSON (195) | BU28: RM OF WOODLANDS (206) | BV28: TOWN OF CARMAN (409) | BW28: 0 | BX28: 0 | BY28: 0 | BZ28: 0 | CA28: 0 | CB28: 0 | CC28: 0 | DJ28: 3271900 | DK28: 3622236 | DL28: 2076052 | DM28: 326207 | DN28: 244386 | DO28: 476136 | DP28: 37053 | DQ28: 363054 | DR28: 1805793 | DS28: 1415459 | DT28: 898756 | DU28: 1424 | DV28: 3974 | DW28: 1468119 | DX28: 11427 | DY28: 1568283 | DZ28: 0 | EA28: 0 | EB28: 0 | EC28: 0 | ED28: 0 | EE28: 0 | FM28: -0.2133667693 | FN28: 372861.0227 | FO28: PR | FQ28: -17027820 | FR28: -17027820 | FS28: PR
G29: HA | H29: R.M. of De Salaberry | I29: Oct 31 | T29: 29 | U29: 22 | V29: =+'DATA ENTRY'!A54 ->  | W29: =IF('DATA ENTRY'!F54="",0,1) -> 0 | X29: =IF('DATA ENTRY'!G54="",0,2) -> 0 | Y29: =IF('DATA ENTRY'!H54="",0,3) -> 0 | Z29: =IF('DATA ENTRY'!I54="",0,4) -> 0 | AA29: =IF('DATA ENTRY'!J54="",0,AA1) -> 0 | AB29: =IF('DATA ENTRY'!K54="",0,AB1) -> 0 | AC29: =IF('DATA ENTRY'!L54="",0,AC1) -> 0 | AD29: =IF('DATA ENTRY'!M54="",0,AD1) -> 0 | AE29: =IF('DATA ENTRY'!N54="",0,AE1) -> 0 | AF29: =IF('DATA ENTRY'!O54="",0,AF1) -> 0 | AG29: =IF('DATA ENTRY'!P54="",0,AG1) -> 0 | AH29: =IF('DATA ENTRY'!Q54="",0,AH1) -> 0 | AI29: 0 | AJ29: =HLOOKUP($AI$5,'DATA ENTRY'!$F$16:$Q$56,T29,0) ->  | AV29: PS | AW29: PRAIRIE SPIRIT | AX29: 15129002 | AY29: 1584593 | AZ29: 115 | BA29: 16713710 | BB29: 0 | BC29: 841411 | BD29: 617314.3919 | BE29: 63070.7459 | BF29: 15191913.86 | BG29: RM OF ARGYLE (102) | BH29: RM OF DUFFERIN (120) | BI29: RM OF GREY (133) | BJ29: MUNICIPALITY OF LORNE (144) | BK29: MUNICIPALITY OF LOUISE (145) | BL29: MUNICIPALITY OF PEMBINA (161) | BM29: RM OF PORTAGE LA PRAIRIE (163) | BN29: CARTWRIGHT-ROBLIN MUNICIPALITY (167) | BO29: MUNICIPALITY OF GLENBORO-SOUTH CYPRESS (187) | BP29: MUNICIPALITY OF NORFOLK TREHERNE (188) | BQ29: RM OF STANLEY (190) | BR29: RM OF PRAIRIE LAKES (192) | BS29: RM OF THOMPSON (195) | BT29: RM OF VICTORIA (197) | BU29: 0 | BV29: 0 | BW29: 0 | BX29: 0 | BY29: 0 | BZ29: 0 | CA29: 0 | CB29: 0 | CC29: 0 | DJ29: 1106260 | DK29: 96475 | DL29: 887349 | DM29: 3011128 | DN29: 2111225 | DO29: 3097131 | DP29: 38143 | DQ29: 777675 | DR29: 1099492 | DS29: 1530473 | DT29: 848 | DU29: 444182 | DV29: 37381 | DW29: 954152 | DX29: 0 | DY29: 0 | DZ29: 0 | EA29: 0 | EB29: 0 | EC29: 0 | ED29: 0 | EE29: 0 | FM29: -0.1378098316 | FN29: 320667.3719 | FO29: PS | FQ29: -13607321 | FR29: -13607321 | FS29: PS
F30: =MAX(F4:F29) -> 16 | G30: HA | H30: Municipality of Emerson-Franklin | I30: Oct 31 | T30: 30 | U30: 23 | V30: =+'DATA ENTRY'!A55 ->  | W30: =IF('DATA ENTRY'!F55="",0,1) -> 0 | X30: =IF('DATA ENTRY'!G55="",0,2) -> 0 | Y30: =IF('DATA ENTRY'!H55="",0,3) -> 0 | Z30: =IF('DATA ENTRY'!I55="",0,4) -> 0 | AA30: =IF('DATA ENTRY'!J55="",0,AA1) -> 0 | AB30: =IF('DATA ENTRY'!K55="",0,AB1) -> 0 | AC30: =IF('DATA ENTRY'!L55="",0,AC1) -> 0 | AD30: =IF('DATA ENTRY'!M55="",0,AD1) -> 0 | AE30: =IF('DATA ENTRY'!N55="",0,AE1) -> 0 | AF30: =IF('DATA ENTRY'!O55="",0,AF1) -> 0 | AG30: =IF('DATA ENTRY'!P55="",0,AG1) -> 0 | AH30: =IF('DATA ENTRY'!Q55="",0,AH1) -> 0 | AI30: 0 | AJ30: =HLOOKUP($AI$5,'DATA ENTRY'!$F$16:$Q$56,T30,0) ->  | AV30: RE | AW30: RED RIVER VALLEY | AX30: 18898639 | AY30: 4790059 | AZ30: 516 | BA30: 23689214 | BB30: 0 | BC30: 818721 | BD30: 813463.2618 | BE30: 249226.4808 | BF30: 21807803.26 | BG30: RM OF CARTIER (112) | BH30: RM OF DE SALABERRY (119) | BI30: RM OF DUFFERIN (120) | BJ30: MUNICIPALITY OF EMERSON-FRANKLIN (127) | BK30: RM OF MACDONALD (146) | BL30: RM OF MONTCALM (151) | BM30: RM OF MORRIS (152) | BN30: MUNICIPALITY OF RHINELAND (164) | BO30: RM OF RITCHOT (165) | BP30: RM OF ROLAND (169) | BQ30: VILLAGE ST. PIERRE-JOLYS (357) | BR30: TOWN OF MORRIS (435) | BS30: 0 | BT30: 0 | BU30: 0 | BV30: 0 | BW30: 0 | BX30: 0 | BY30: 0 | BZ30: 0 | CA30: 0 | CB30: 0 | CC30: 0 | DJ30: 423609 | DK30: 3338491 | DL30: 27317 | DM30: 134090 | DN30: 9343086 | DO30: 984381 | DP30: 4653177 | DQ30: 19231 | DR30: 1169973 | DS30: 68830 | DT30: 523477 | DU30: 1122142 | DV30: 0 | DW30: 0 | DX30: 0 | DY30: 0 | DZ30: 0 | EA30: 0 | EB30: 0 | EC30: 0 | ED30: 0 | EE30: 0 | FM30: -0.742588833 | FN30: 445550.0618 | FO30: RE | FQ30: -17017745 | FR30: -17017745 | FS30: RE
G31: HA | H31: R.M. of Hanover | I31: Oct 29 | T31: 31 | U31: 24 | V31: =+'DATA ENTRY'!A56 -> 0 | W31: =IF('DATA ENTRY'!F56="",0,1) -> 0 | X31: =IF('DATA ENTRY'!G56="",0,2) -> 0 | Y31: =IF('DATA ENTRY'!H56="",0,3) -> 0 | Z31: =IF('DATA ENTRY'!I56="",0,4) -> 0 | AA31: =IF('DATA ENTRY'!J56="",0,AA1) -> 0 | AB31: =IF('DATA ENTRY'!K56="",0,AB1) -> 0 | AC31: =IF('DATA ENTRY'!L56="",0,AC1) -> 0 | AD31: =IF('DATA ENTRY'!M56="",0,AD1) -> 0 | AE31: =IF('DATA ENTRY'!N56="",0,AE1) -> 0 | AF31: =IF('DATA ENTRY'!O56="",0,AF1) -> 0 | AG31: =IF('DATA ENTRY'!P56="",0,AG1) -> 0 | AH31: =IF('DATA ENTRY'!Q56="",0,AH1) -> 0 | AI31: 0 | AJ31: =HLOOKUP($AI$5,'DATA ENTRY'!$F$16:$Q$56,T31,0) ->  | AK31: 0 | AV31: RI | AW31: RIVER EAST TRANSCONA | AX31: 97553371 | AY31: 2044342 | AZ31: -201 | BA31: 99597512 | BB31: 0 | BC31: 745262 | BD31: 3820369.988 | BE31: 127564.3905 | BF31: 94904315.62 | BG31: RM OF EAST ST. PAUL (121) | BH31: RM OF ST. CLEMENTS (176) | BI31: CITY OF WINNIPEG (590) | BJ31: 0 | BK31: 0 | BL31: 0 | BM31: 0 | BN31: 0 | BO31: 0 | BP31: 0 | BQ31: 0 | BR31: 0 | BS31: 0 | BT31: 0 | BU31: 0 | BV31: 0 | BW31: 0 | BX31: 0 | BY31: 0 | BZ31: 0 | CA31: 0 | CB31: 0 | CC31: 0 | DJ31: 11281958 | DK31: 2325466 | DL31: 81296891 | DM31: 0 | DN31: 0 | DO31: 0 | DP31: 0 | DQ31: 0 | DR31: 0 | DS31: 0 | DT31: 0 | DU31: 0 | DV31: 0 | DW31: 0 | DX31: 0 | DY31: 0 | DZ31: 0 | EA31: 0 | EB31: 0 | EC31: 0 | ED31: 0 | EE31: 0 | FM31: 0.621216476 | FN31: 1904939.888 | FO31: RI | FQ31: -92859973 | FR31: -92859973 | FS31: RI
G32: HA | H32: R.M. of La Broquerie | I32: Sep 30 | AV32: RO | AW32: ROLLING RIVER | AX32: 13663743 | AY32: 40590 | AZ32: 283 | BA32: 13704616 | BB32: 0 | BC32: 718967 | BD32: 528269.7948 | BE32: 16950.10185 | BF32: 12440429.1 | BG32: RM OF OAKVIEW (107) | BH32: MUNICIPALITY OF CLANWILLIAM-ERICKSON (114) | BI32: RM OF CORNWALLIS (116) | BJ32: RM OF ELTON (124) | BK32: RM OF MINTO-ODANAH (159) | BL32: RM OF YELLOWHEAD (183) | BM32: TOWN OF MINNEDOSA (431) | BN32: RIVERDALE MUNICIPALITY (443) | BO32: MUNICIPALITY OF HARRISON PARK (609) | BP32: 0 | BQ32: 0 | BR32: 0 | BS32: 0 | BT32: 0 | BU32: 0 | BV32: 0 | BW32: 0 | BX32: 0 | BY32: 0 | BZ32: 0 | CA32: 0 | CB32: 0 | CC32: 0 | DJ32: 2360009 | DK32: 710829 | DL32: 658439 | DM32: 1761577 | DN32: 1612811 | DO32: 71468 | DP32: 1510740 | DQ32: 1374518 | DR32: 2380039 | DS32: 0 | DT32: 0 | DU32: 0 | DV32: 0 | DW32: 0 | DX32: 0 | DY32: 0 | DZ32: 0 | EA32: 0 | EB32: 0 | EC32: 0 | ED32: 0 | EE32: 0 | FM32: -0.8966064043 | FN32: 261361.2748 | FO32: RO | FQ32: -12399840 | FR32: -12399840 | FS32: RO
G33: HA | H33: R.M. of Ritchot | I33: Oct 31 | AV33: SE | AW33: SEINE RIVER | AX33: 25131337 | AY33: 6735853 | AZ33: 272 | BA33: 31867462 | BB33: 0 | BC33: 1289547 | BD33: 1095330.242 | BE33: 457039.6597 | BF33: 29025545.1 | BG33: RM OF LA BROQUERIE (138) | BH33: RM OF MACDONALD (146) | BI33: RM OF RITCHOT (165) | BJ33: RM OF STE. ANNE (175) | BK33: RM OF SPRINGFIELD (189) | BL33: RM OF TACHE (194) | BM33: TOWN OF STE. ANNE (351) | BN33: CITY OF WINNIPEG (590) | BO33: RM OF PINEY (610) | BP33: RM OF REYNOLDS (611) | BQ33: 0 | BR33: 0 | BS33: 0 | BT33: 0 | BU33: 0 | BV33: 0 | BW33: 0 | BX33: 0 | BY33: 0 | BZ33: 0 | CA33: 0 | CB33: 0 | CC33: 0 | DJ33: 2359053 | DK33: 3765314 | DL33: 5568036 | DM33: 3295243 | DN33: 61274 | DO33: 6757158 | DP33: 1375853 | DQ33: 4990673 | DR33: 452678 | DS33: 400264 | DT33: 0 | DU33: 0 | DV33: 0 | DW33: 0 | DX33: 0 | DY33: 0 | DZ33: 0 | EA33: 0 | EB33: 0 | EC33: 0 | ED33: 0 | EE33: 0 | FM33: -0.9014948569 | FN33: 603528.5018 | FO33: SE | FQ33: -22289693 | FR33: -22289693 | FS33: SE
G34: HA | H34: R.M. of Ste. Anne | I34: Oct 29 | AV34: SO | AW34: SEVEN OAKS | AX34: 66334378 | AY34: 275872 | AZ34: -126 | BA34: 66610124 | BB34: 0 | BC34: 2681917 | BD34: 2579141.6 | BE34: 111286.6313 | BF34: 61237778.77 | BG34: RM OF ST. ANDREWS (174) | BH34: RM OF WEST ST. PAUL (201) | BI34: CITY OF WINNIPEG (590) | BJ34: 0 | BK34: 0 | BL34: 0 | BM34: 0 | BN34: 0 | BO34: 0 | BP34: 0 | BQ34: 0 | BR34: 0 | BS34: 0 | BT34: 0 | BU34: 0 | BV34: 0 | BW34: 0 | BX34: 0 | BY34: 0 | BZ34: 0 | CA34: 0 | CB34: 0 | CC34: 0 | DJ34: 444041 | DK34: 8501540 | DL34: 52292198 | DM34: 0 | DN34: 0 | DO34: 0 | DP34: 0 | DQ34: 0 | DR34: 0 | DS34: 0 | DT34: 0 | DU34: 0 | DV34: 0 | DW34: 0 | DX34: 0 | DY34: 0 | DZ34: 0 | EA34: 0 | EB34: 0 | EC34: 0 | ED34: 0 | EE34: 0 | FM34: -0.2308799401 | FN34: 1278109.28 | FO34: SO | FQ34: -60961907 | FR34: -60961907 | FS34: SO
G35: HA | H35: R.M. of Tache | I35: Nov 1 | AV35: SR | AW35: SOUTHWEST HORIZON | AX35: 14939848 | AY35: 30121 | AZ35: -360 | BA35: 14969609 | BB35: 0 | BC35: 713853 | BD35: 599198.4942 | BE35: 684.6625403 | BF35: 13655872.84 | BG35: MUNICIPALITY OF BRENDA-WASKADA (109) | BH35: MUNICIPALITY OF GRASSLAND (111) | BI35: RM OF CORNWALLIS (116) | BJ35: MUNICIPALITY OF TWO BORDERS (122) | BK35: MUNICIPALITY OF BOISSEVAIN-MORTON (153) | BL35: MUNICIPALITY OF OAKLAND-WAWANESA (157) | BM35: RM OF SIFTON (184) | BN35: MUNICIPALITY OF GLENBORO-SOUTH CYPRESS (187) | BO35: RM OF PRAIRIE LAKES (192) | BP35: RM OF WHITEHEAD (202) | BQ35: MUNICIPALITY OF DELORAINE-WINCHESTER (205) | BR35: TOWN OF MELITA (429) | BS35: MUNICIPALITY OF SOURIS-GLENWOOD (449) | BT35: 0 | BU35: 0 | BV35: 0 | BW35: 0 | BX35: 0 | BY35: 0 | BZ35: 0 | CA35: 0 | CB35: 0 | CC35: 0 | DJ35: 2507013 | DK35: 1595945 | DL35: 46529 | DM35: 3133242 | DN35: 85375 | DO35: 1468258 | DP35: 273474 | DQ35: 267110 | DR35: 117772 | DS35: 205212 | DT35: 1426139 | DU35: 397230 | DV35: 2132574 | DW35: 0 | DX35: 0 | DY35: 0 | DZ35: 0 | EA35: 0 | EB35: 0 | EC35: 0 | ED35: 0 | EE35: 0 | FM35: -0.1567277219 | FN35: 306259.8742 | FO35: SR | FQ35: -13625752 | FR35: -13625752 | FS35: SR
G36: HA | H36: Town of Niverville | I36: Sep 30 | AV36: ST | AW36: ST. JAMES-ASSINIBOIA | AX36: 70152835 | AY36: 778660 | AZ36: 120 | BA36: 70931615 | BB36: 0 | BC36: 1772637 | BD36: 2748400.395 | BE36: -19919.26451 | BF36: 66430496.87 | BG36: RM OF HEADINGLEY (208) | BH36: CITY OF WINNIPEG (590) | BI36: 0 | BJ36: 0 | BK36: 0 | BL36: 0 | BM36: 0 | BN36: 0 | BO36: 0 | BP36: 0 | BQ36: 0 | BR36: 0 | BS36: 0 | BT36: 0 | BU36: 0 | BV36: 0 | BW36: 0 | BX36: 0 | BY36: 0 | BZ36: 0 | CA36: 0 | CB36: 0 | CC36: 0 | DJ36: 6638396 | DK36: 59792101 | DL36: 0 | DM36: 0 | DN36: 0 | DO36: 0 | DP36: 0 | DQ36: 0 | DR36: 0 | DS36: 0 | DT36: 0 | DU36: 0 | DV36: 0 | DW36: 0 | DX36: 0 | DY36: 0 | DZ36: 0 | EA36: 0 | EB36: 0 | EC36: 0 | ED36: 0 | EE36: 0 | FM36: -0.130695492 | FN36: 1373753.735 | FO36: ST | FQ36: -65651837 | FR36: -65651837 | FS36: ST
G37: HA | H37: City of Steinbach | I37: Sep 30 | AV37: SU | AW37: SUNRISE | AX37: 40976091 | AY37: 651572 | AZ37: 291 | BA37: 41627954 | BB37: 0 | BC37: 1489849 | BD37: 1605244.263 | BE37: -13283.69702 | BF37: 38546144.43 | BG37: RM OF BROKENHEAD (110) | BH37: RM OF LAC DU BONNET (139) | BI37: RM OF RITCHOT (165) | BJ37: RM OF ST. CLEMENTS (176) | BK37: RM OF SPRINGFIELD (189) | BL37: RM OF TACHE (194) | BM37: RM OF WHITEMOUTH (203) | BN37: TOWN OF LAC DU BONNET (333) | BO37: TOWN POWERVIEW-PINEFALLS (347) | BP37: TOWN OF BEAUSEJOUR (401) | BQ37: RM OF ALEXANDER (600) | BR37: RM OF REYNOLDS (611) | BS37: 0 | BT37: 0 | BU37: 0 | BV37: 0 | BW37: 0 | BX37: 0 | BY37: 0 | BZ37: 0 | CA37: 0 | CB37: 0 | CC37: 0 | DJ37: 4607095 | DK37: 5527337 | DL37: 147782 | DM37: 874740 | DN37: 18230752 | DO37: 411496 | DP37: 1098545 | DQ37: 805850 | DR37: 396858 | DS37: 2260867 | DT37: 2702494 | DU37: 1482328 | DV37: 0 | DW37: 0 | DX37: 0 | DY37: 0 | DZ37: 0 | EA37: 0 | EB37: 0 | EC37: 0 | ED37: 0 | EE37: 0 | FM37: 0.4340053201 | FN37: 801282.923 | FO37: SU | FQ37: -37894572 | FR37: -37894572 | FS37: SU
G38: KE | H38: Town of The Pas | I38: Aug 31 | AU38: W/O | AV38: SW | AW38: SWAN VALLEY | BA38: 9505127 | BC38: 994366 | BD38: 469095.76 | BF38: 8041665.24 | BG38: MUNICIPALITY OF MINITONAS-BOWSMAN (149) | BH38: MUNICIPALITY OF SWAN VALLEY WEST (193) | BI38: TOWN OF SWAN RIVER (455) | BJ38: RM OF MOUNTAIN (617) | BK38: 0 | BL38: 0 | BM38: 0 | BN38: 0 | BO38: 0 | BP38: 0 | BQ38: 0 | BR38: 0 | BS38: 0 | BT38: 0 | BU38: 0 | BV38: 0 | BW38: 0 | BX38: 0 | BY38: 0 | BZ38: 0 | CA38: 0 | CB38: 0 | CC38: 0 | DJ38: 2047435 | DK38: 3224469 | DL38: 2359290 | DM38: 410472 | DN38: 0 | DO38: 0 | DP38: 0 | DQ38: 0 | DR38: 0 | DS38: 0 | DT38: 0 | DU38: 0 | DV38: 0 | DW38: 0 | DX38: 0 | DY38: 0 | DZ38: 0 | EA38: 0 | EB38: 0 | EC38: 0 | ED38: 0 | EE38: 0 | FM38: -0.7599999998 | FN38: 282719.68 | FO38: SW | FP38: No DSFM | FQ38: -8041666 | FR38: -8041666 | FS38: SW
G39: KE | H39: R.M. of Kelsey | I39: Nov 1 | AU39: W/O | AV39: TM | AW39: TURTLE MOUNTAIN | BA39: 7835953 | BB39: 0 | BC39: 0 | BD39: 304280 | BF39: 7531673 | BG39: RM OF ARGYLE (102) | BH39: MUNICIPALITY OF GRASSLAND (111) | BI39: MUNICIPALITY OF BOISSEVAIN-MORTON (153) | BJ39: CARTWRIGHT-ROBLIN MUNICIPALITY (167) | BK39: RM OF PRAIRIE LAKES (192) | BL39: KILLARNEY-TURTLE MOUNTAIN (196) | BM39: 0 | BN39: 0 | BO39: 0 | BP39: 0 | BQ39: 0 | BR39: 0 | BS39: 0 | BT39: 0 | BU39: 0 | BV39: 0 | BW39: 0 | BX39: 0 | BY39: 0 | BZ39: 0 | CA39: 0 | CB39: 0 | CC39: 0 | DJ39: 72876 | DK39: 519292 | DL39: 2280814 | DM39: 142200 | DN39: 1271769 | DO39: 3244722 | DP39: 0 | DQ39: 0 | DR39: 0 | DS39: 0 | DT39: 0 | DU39: 0 | DV39: 0 | DW39: 0 | DX39: 0 | DY39: 0 | DZ39: 0 | EA39: 0 | EB39: 0 | EC39: 0 | ED39: 0 | EE39: 0 | FM39: 0 | FN39: 150633.5 | FO39: TM | FP39: No DSFM | FQ39: 0 | FR39: -7531673 | FS39: TM
G40: LA | H40: Municipality of Bifrost-Riverton | I40: Sep 30 | AV40: TR | AW40: TURTLE RIVER | AX40: 4080785 | AY40: 144717 | AZ40: 136 | BA40: 4225638 | BB40: 0 | BC40: 271971 | BD40: 213861.8405 | BE40: 23091.99218 | BF40: 3716713.167 | BG40: MUNICIPALITY OF GLENELLA-LANSDOWNE (142) | BH40: RM OF LAKESHORE (143) | BI40: MUNICIPALITY OF MCCREARY (147) | BJ40: RM OF ROSEDALE (170) | BK40: MUNICIPALITY OF WESTLAKE-GLADSTONE (200) | BL40: MUNICIPALITY OF STE. ROSE (359) | BM40: RM OF ALONSA (601) | BN40: 0 | BO40: 0 | BP40: 0 | BQ40: 0 | BR40: 0 | BS40: 0 | BT40: 0 | BU40: 0 | BV40: 0 | BW40: 0 | BX40: 0 | BY40: 0 | BZ40: 0 | CA40: 0 | CB40: 0 | CC40: 0 | DJ40: 522536 | DK40: 169937 | DL40: 668157 | DM40: 322415 | DN40: 25405 | DO40: 1080510 | DP40: 927753 | DQ40: 0 | DR40: 0 | DS40: 0 | DT40: 0 | DU40: 0 | DV40: 0 | DW40: 0 | DX40: 0 | DY40: 0 | DZ40: 0 | EA40: 0 | EB40: 0 | EC40: 0 | ED40: 0 | EE40: 0 | FM40: 0.1672973558 | FN40: 133845.0205 | FO40: TR | FQ40: -3571996 | FR40: -3571996 | FS40: TR
G41: LA | H41: R.M. of Coldwell | I41: Sep 30 | AU41: W/O | AV41: WE | AW41: WESTERN | BA41: 9909568 | BB41: 0 | BC41: 0 | BD41: 384800.62 | BF41: 9524767.38 | BG41: MUNICIPALITY OF PEMBINA (161) | BH41: RM OF ROLAND (169) | BI41: RM OF STANLEY (190) | BJ41: RM OF THOMPSON (195) | BK41: CITY OF MORDEN (433) | BL41: 0 | BM41: 0 | BN41: 0 | BO41: 0 | BP41: 0 | BQ41: 0 | BR41: 0 | BS41: 0 | BT41: 0 | BU41: 0 | BV41: 0 | BW41: 0 | BX41: 0 | BY41: 0 | BZ41: 0 | CA41: 0 | CB41: 0 | CC41: 0 | DJ41: 186455 | DK41: 72021 | DL41: 2553897 | DM41: 198432 | DN41: 6513962 | DO41: 0 | DP41: 0 | DQ41: 0 | DR41: 0 | DS41: 0 | DT41: 0 | DU41: 0 | DV41: 0 | DW41: 0 | DX41: 0 | DY41: 0 | DZ41: 0 | EA41: 0 | EB41: 0 | EC41: 0 | ED41: 0 | EE41: 0 | FM41: 0.3800000008 | FN41: 190495.26 | FO41: WE | FP41: No DSFM | FQ41: -9524767 | FR41: -9524767 | FS41: WE
G42: LA | H42: R.M. of Rockwood | I42: Oct 29 | AV42: WI | AW42: WINNIPEG | AX42: 207491626 | AY42: 2731924 | AZ42: -134 | BA42: 210223416 | BB42: 0 | BC42: 4790198 | BD42: 8158463.534 | BE42: 205555.0474 | BF42: 197069199.4 | BG42: City of Winnipeg | BH42: 0 | BI42: 0 | BJ42: 0 | BK42: 0 | BL42: 0 | BM42: 0 | BN42: 0 | BO42: 0 | BP42: 0 | BQ42: 0 | BR42: 0 | BS42: 0 | BT42: 0 | BU42: 0 | BV42: 0 | BW42: 0 | BX42: 0 | BY42: 0 | BZ42: 0 | CA42: 0 | CB42: 0 | CC42: 0 | DJ42: 197069199.4 | DK42: 0 | DL42: 0 | DM42: 0 | DN42: 0 | DO42: 0 | DP42: 0 | DQ42: 0 | DR42: 0 | DS42: 0 | DT42: 0 | DU42: 0 | DV42: 0 | DW42: 0 | DX42: 0 | DY42: 0 | DZ42: 0 | EA42: 0 | EB42: 0 | EC42: 0 | ED42: 0 | EE42: 0 | FM42: 0 | FN42: 4119042.594 | FO42: WI | FP42: ok 1 mun. | FQ42: -194337275.4 | FR42: -194337275.4 | FS42: WI
G43: LA | H43: R.M. of St. Laurent | I43: Oct 31
G44: LA | H44: Municipality of West Interlake | I44: Oct 31
G45: LA | H45: R.M. of Armstrong | I45: Oct 31 | AV45: =IF(DIVNUM=1,0,VLOOKUP(DIVNUM2,$AV$7:$FL$42,AV1)) -> 0 | AW45: 0 | AX45: 0 | AY45: 0 | AZ45: 0 | BA45: 0 | BB45: 0 | BC45: 0 | BD45: 0 | BE45: 0 | BF45: 0 | BG45: 0 | BH45: 0 | BI45: 0 | BJ45: 0 | BK45: 0 | BL45: 0 | BM45: 0 | BN45: 0 | BO45: 0 | BP45: 0 | BQ45: 0 | BR45: 0 | BS45: 0 | BT45: 0 | BU45: 0 | BV45: 0 | BW45: 0 | BX45: 0 | BY45: 0 | BZ45: 0 | CA45: 0 | CB45: =IF(DIVNUM=1,0,VLOOKUP(DIVNUM2,$AV$7:$FL$42,CB1)) -> 0 | CC45: 0 | CD45: 0 | CE45: 0 | CF45: 0 | CG45: 0 | CH45: 0 | CI45: 0 | CJ45: 0 | CK45: 0 | CL45: 0 | CM45: 0 | CN45: 0 | CO45: 0 | CP45: 0 | CQ45: 0 | CR45: 0 | CS45: 0 | CT45: 0 | CU45: 0 | CV45: 0 | CW45: 0 | CX45: 0 | CY45: 0 | CZ45: 0 | DA45: 0 | DB45: 0 | DC45: 0 | DD45: 0 | DE45: 0 | DF45: 0 | DG45: 0 | DH45: =IF(DIVNUM=1,0,VLOOKUP(DIVNUM2,$AV$7:$FL$42,DH1)) -> 0 | DI45: 0 | DJ45: 0 | DK45: 0 | DL45: 0 | DM45: 0 | DN45: 0 | DO45: 0 | DP45: 0 | DQ45: 0 | DR45: 0 | DS45: 0 | DT45: 0 | DU45: 0 | DV45: 0 | DW45: 0 | DX45: 0 | DY45: 0 | DZ45: 0 | EA45: 0 | EB45: 0 | EC45: 0 | ED45: 0 | EE45: 0 | EF45: 0 | EG45: 0 | EH45: 0 | EI45: 0 | EJ45: 0 | EK45: 0 | EL45: 0 | EM45: 0 | EN45: =IF(DIVNUM=1,0,VLOOKUP(DIVNUM2,$AV$7:$FL$42,EN1)) -> 0 | EO45: 0 | EP45: 0 | EQ45: 0 | ER45: 0 | ES45: 0 | ET45: 0 | EU45: 0 | EV45: 0 | EW45: 0 | EX45: 0 | EY45: 0 | EZ45: 0 | FA45: 0 | FB45: 0 | FC45: 0 | FD45: 0 | FE45: 0 | FF45: 0 | FG45: 0 | FH45: 0 | FI45: 0 | FJ45: 0 | FK45: 0 | FL45: 0 | FM45: =IF(DIVNUM=1,0,VLOOKUP(DIVNUM2,$AV$7:$FM$42,FM1)) -> 0 | FN45: =IF(DIVNUM=1,0,VLOOKUP(DIVNUM2,$AV$7:$FN$42,FN1)) -> 0
G46: LA | H46: R.M. of Fisher | I46: Oct 31 | BG46: =+DJ45 -> 0 | BH46: =+DK45 -> 0 | BI46: 0 | BJ46: 0 | BK46: 0 | BL46: 0 | BM46: 0 | BN46: 0 | BO46: 0 | BP46: 0 | BQ46: 0 | BR46: 0 | BS46: 0 | BT46: 0 | BU46: 0 | BV46: 0 | BW46: 0 | BX46: 0 | BY46: 0 | BZ46: 0 | CA46: 0 | CB46: 0 | CC46: 0 | CD46: =+EG45 -> 0 | CE46: =+EH45 -> 0 | CF46: =+EI45 -> 0 | CG46: =+EJ45 -> 0 | CH46: =+EK45 -> 0 | CI46: =+EL45 -> 0 | CJ46: =+EM45 -> 0 | CK46: =+EN45 -> 0 | CL46: =+EO45 -> 0 | CM46: =+EP45 -> 0 | CN46: =+EQ45 -> 0 | CO46: =+ER45 -> 0 | CP46: =+ES45 -> 0 | CQ46: =+ET45 -> 0 | CR46: =+EU45 -> 0 | CS46: =+EV45 -> 0 | CT46: =+EW45 -> 0 | CU46: =+EX45 -> 0 | CV46: =+EY45 -> 0 | CW46: =+EZ45 -> 0 | CX46: =+FA45 -> 0 | CY46: =+FB45 -> 0 | CZ46: =+FC45 -> 0 | DA46: =+FD45 -> 0 | DB46: =+FE45 -> 0 | DC46: =+FF45 -> 0 | DD46: =+FG45 -> 0 | DE46: =+FH45 -> 0 | DF46: =+FI45 -> 0 | DG46: =+FJ45 -> 0 | DH46: =+FK45 -> 0 | DI46: =+FL45 -> 0
G47: LA | H47: R.M. of Grahamdale | I47: Oct 31 | AX47: =SUM(AX7:AX42) -> 1070006382 | AY47: 36649655 | AZ47: 1158 | BA47: 1187754694 | BB47: 0 | BC47: 37392862 | BD47: =SUM(BD7:BD42) -> 45160272.13 | BE47: 1107082.179 | BF47: 1104094478 | DJ47: =SUM(DJ7:DJ42) -> 271260951.9 | DK47: 124260748 | DL47: 428211784 | DM47: 34180349 | DN47: 54830242 | DO47: 37091268 | DP47: 24024261 | DQ47: 32155330 | DR47: 68477480 | DS47: 13011933 | DT47: 5859444 | DU47: 3449369 | DV47: 2260191 | DW47: 2424367 | DX47: 17504 | DY47: 1629025 | DZ47: 10395 | EA47: 99926 | EB47: 11791 | EC47: 23138 | ED47: 5826 | EE47: 13657 | EF47: 84931 | EG47: =SUM(EG7:EG42) -> 18374 | EH47: 7599 | EI47: 53414 | EJ47: 1147 | EK47: 33282 | EL47: 50163 | EM47: 14811 | EN47: 5648 | EO47: 250 | EP47: 3452 | EQ47: 1773 | ER47: 13852 | ES47: 117023 | ET47: 24171 | EU47: 3372 | EV47: 6459 | EW47: 13070 | EX47: 8589 | EY47: 122778 | EZ47: 55216 | FA47: 23737 | FB47: 2239 | FC47: 963 | FD47: 6095 | FE47: 42215 | FF47: 27152 | FG47: 4032 | FH47: 24484 | FI47: 6679 | FJ47: 1221 | FK47: 5832 | FL47: 1479 | FM47: -4.249553067 | FN47: =SUM(FN7:FN42) -> 22750797.35
G48: LO | H48: R.M. of Brokenhead | I48: Sep 30 | AW48: Splevy22 File Check | AY48: 36649655 | AZ48: 1158 | BA48: 1187754694 | BB48: 0 | BC48: 37392862 | BD48: 45160272.13 | BE48: 1107082.179 | BF48: 1104094478
G49: LO | H49: R.M. of St. Andrews | I49: Oct 31
G50: LO | H50: R.M. of St. Clements | I50: Oct 31
G51: LO | H51: R.M. of Victoria Beach | I51: Jul 31
G52: LO | H52: City of Selkirk | I52: Jul 30
G53: LO | H53: R.M. of Alexander | I53: Sep 1
G54: LR | H54: R.M. of Ritchot | I54: Oct 31
G55: LR | H55: R.M. of Springfield | I55: Oct 29
G56: LR | H56: City of Winnipeg | I56: Jun 30
G57: MO | H57: R.M. of Dauphin | I57: Oct 29
G58: MO | H58: Municipality of Ethelbert | I58: Oct 31
G59: MO | H59: Grandview Municipality | I59: Oct 31
G60: MO | H60: R.M. of Lakeshore | I60: Oct 31
G61: MO | H61: Municipality of McCreary | I61: Oct 31
G62: MO | H62: R.M. of Mossey River | I62: Oct 31
G63: MO | H63: R.M. of Riding Mountain West | I63: Oct 29
G64: MO | H64: Municipality of Hillsburg-Roblin-Shell River | I64: Oct 31
G65: MO | H65: Gilbert Plains Municipality | I65: Sep 30
G66: MO | H66: City of Dauphin | I66: Jul 30
G67: MO | H67: R.M. of Mountain | I67: Sep 30
G68: MY | H68: City of Thompson | I68: Sep 30
G69: PA | H69: R.M. of Ellice-Archie | I69: Oct 31
G70: PA | H70: R.M. of Oakview | I70: Oct 29
G71: PA | H71: R.M. of Riding Mountain West | I71: Oct 29
G72: PA | H72: R.M. of Yellowhead | I72: Oct 31
G73: PA | H73: R.M. of Wallace-Woodworth | I73: Oct 29
G74: PA | H74: Hamiota Municipality | I74: Oct 31
G75: PA | H75: Rossburn Municipality | I75: Oct 31
G76: PA | H76: Prairie View Municipality | I76: Oct 29
G77: PA | H77: Municipality of Russell-Binscarth | I77: Oct 29
G78: PA | H78: Municipality of Harrison Park | I78: Oct 29
G79: PE | H79: R.M. of Macdonald | I79: Sep 24
G80: PE | H80: R.M. of Headingley | I80: Sep 30
G81: PE | H81: City of Winnipeg | I81: Jun 30
G82: PI | H82: Municipality of Glenella-Lansdowne | I82: Oct 31
G83: PI | H83: Municipality of North Cypress-Langford | I83: Sep 30
G84: PI | H84: Municipality of North Norfolk | I84: Sep 30
G85: PI | H85: R.M. of Portage La Prairie | I85: Sep 30
G86: PI | H86: Municipality of Norfolk Treherne | I86: Oct 31
G87: PI | H87: R.M. of Victoria | I87: Oct 29
G88: PI | H88: Municipality of Westlake-Gladstone | I88: Oct 29
G89: PO | H89: R.M. of Grey | I89: Sep 30
G90: PO | H90: Municipality of North Norfolk | I90: Sep 30
G91: PO | H91: R.M. of Portage La Prairie | I91: Sep 30
G92: PO | H92: R.M. of St. Francois Xavier | I92: Sep 30
G93: PO | H93: Municipality of Norfolk Treherne | I93: Oct 31
G94: PO | H94: Municipality of Westlake-Gladstone | I94: Oct 29
G95: PO | H95: R.M. of Woodlands | I95: Oct 31
G96: PO | H96: City Portage la Prairie | I96: Jul 31
G97: PR | H97: R.M. of Cartier | I97: Sep 30
G98: PR | H98: R.M. of Dufferin | I98: Oct 29
G99: PR | H99: R.M. of Grey | I99: Sep 30
G100: PR | H100: Municipality of Lorne | I100: Oct 29
G101: PR | H101: R.M. of Macdonald | I101: Sep 24
G102: PR | H102: R.M. of Morris | I102: Oct 29
G103: PR | H103: Municipality of Pembina | I103: Oct 31
G104: PR | H104: R.M. of Portage La Prairie | I104: Sep 30
G105: PR | H105: R.M. of Roland | I105: Oct 29
G106: PR | H106: R.M. of St. Francois Xavier | I106: Sep 30
G107: PR | H107: R.M. of St. Laurent | I107: Oct 31
G108: PR | H108: Municipality of Norfolk Treherne | I108: Oct 31
G109: PR | H109: R.M. of Stanley | I109: Oct 29
G110: PR | H110: R.M. of Thompson | I110: Sep 30
G111: PR | H111: R.M. of Woodlands | I111: Oct 31
G112: PR | H112: Town of Carman | I112: Aug 31
G113: PS | H113: R.M. of Argyle | I113: Oct 31
G114: PS | H114: R.M. of Dufferin | I114: Oct 29
G115: PS | H115: R.M. of Grey | I115: Sep 30
G116: PS | H116: Municipality of Lorne | I116: Oct 29
G117: PS | H117: Municipality of Louise | I117: Oct 29
G118: PS | H118: Municipality of Pembina | I118: Oct 31
G119: PS | H119: R.M. of Portage La Prairie | I119: Sep 30
G120: PS | H120: Cartwright-Roblin Municipality | I120: Oct 31
G121: PS | H121: Municipality of Glenboro-South Cypress | I121: Oct 29
G122: PS | H122: Municipality of Norfolk Treherne | I122: Oct 31
G123: PS | H123: R.M. of Stanley | I123: Oct 29
G124: PS | H124: R.M. of Prairie Lakes | I124: Oct 31
G125: PS | H125: R.M. of Thompson | I125: Sep 30
G126: PS | H126: R.M. of Victoria | I126: Oct 29
G127: RE | H127: R.M. of Cartier | I127: Sep 30
G128: RE | H128: R.M. of De Salaberry | I128: Oct 31
G129: RE | H129: R.M. of Dufferin | I129: Oct 29
G130: RE | H130: Municipality of Emerson-Franklin | I130: Oct 31
G131: RE | H131: R.M. of Macdonald | I131: Sep 24
G132: RE | H132: R.M. of Montcalm | I132: Oct 31
G133: RE | H133: R.M. of Morris | I133: Oct 29
G134: RE | H134: Municipality of Rhineland | I134: Oct 29
G135: RE | H135: R.M. of Ritchot | I135: Oct 31
G136: RE | H136: R.M. of Roland | I136: Oct 29
G137: RE | H137: Village St. Pierre-Jolys | I137: Oct 31
G138: RE | H138: Town of Morris | I138: Sep 30
G139: RI | H139: R.M. of East St. Paul | I139: Sep 30
G140: RI | H140: R.M. of St. Clements | I140: Oct 31
G141: RI | H141: City of Winnipeg | I141: Jun 30
G142: RO | H142: R.M. of Oakview | I142: Oct 29
G143: RO | H143: Municipality of Clanwilliam-Erickson | I143: Oct 31
G144: RO | H144: R.M. of Cornwallis | I144: Sep 30
G145: RO | H145: R.M. of Elton | I145: Oct 29
G146: RO | H146: R.M. of Minto-Odanah | I146: Oct 29
G147: RO | H147: R.M. of Yellowhead | I147: Oct 31
G148: RO | H148: Town of Minnedosa | I148: Sep 30
G149: RO | H149: Riverdale Municipality | I149: Sep 30
G150: RO | H150: Municipality of Harrison Park | I150: Oct 29
G151: SE | H151: R.M. of La Broquerie | I151: Sep 30
G152: SE | H152: R.M. of Macdonald | I152: Sep 24
G153: SE | H153: R.M. of Ritchot | I153: Oct 31
G154: SE | H154: R.M. of Ste. Anne | I154: Oct 29
G155: SE | H155: R.M. of Springfield | I155: Oct 29
G156: SE | H156: R.M. of Tache | I156: Nov 1
G157: SE | H157: Town of Ste. Anne | I157: Jul 30
G158: SE | H158: City of Winnipeg | I158: Jun 30
G159: SE | H159: R.M. of Piney | I159: Oct 29
G160: SE | H160: R.M. of Reynolds | I160: Oct 29
G161: SO | H161: R.M. of St. Andrews | I161: Oct 31
G162: SO | H162: R.M. of West St. Paul | I162: Sep 30
G163: SO | H163: City of Winnipeg | I163: Jun 30
G164: SR | H164: Municipality of Brenda-Waskada | I164: Oct 31
G165: SR | H165: Municipality of Grassland | I165: Oct 29
G166: SR | H166: R.M. of Cornwallis | I166: Sep 30
G167: SR | H167: Municipality of Two Borders | I167: Oct 31
G168: SR | H168: Municipality of Boissevain-Morton | I168: Sep 30
G169: SR | H169: Municipality of Oakland-Wawanesa | I169: Oct 31
G170: SR | H170: R.M. of Sifton | I170: Oct 31
G171: SR | H171: Municipality of Glenboro-South Cypress | I171: Oct 29
G172: SR | H172: R.M. of Prairie Lakes | I172: Oct 31
G173: SR | H173: R.M. of Whitehead | I173: Oct 31
G174: SR | H174: Municipality of Deloraine-Winchester | I174: Oct 31
G175: SR | H175: Town of Melita | I175: Oct 29
G176: SR | H176: Municipality of Souris-Glenwood | I176: Oct 31
G177: ST | H177: R.M. of Headingley | I177: Sep 30
G178: ST | H178: City of Winnipeg | I178: Jun 30
G179: SU | H179: R.M. of Brokenhead | I179: Sep 30
G180: SU | H180: R.M. of Lac Du Bonnet | I180: Sep 17
G181: SU | H181: R.M. of Ritchot | I181: Oct 31
G182: SU | H182: R.M. of St. Clements | I182: Oct 31
G183: SU | H183: R.M. of Springfield | I183: Oct 29
G184: SU | H184: R.M. of Tache | I184: Nov 1
G185: SU | H185: R.M. of Whitemouth | I185: Oct 29
G186: SU | H186: Town of Lac du Bonnet | I186: Sep 24
G187: SU | H187: Town Powerview-Pinefalls | I187: Oct 31
G188: SU | H188: Town of Beausejour | I188: Aug 31
G189: SU | H189: R.M. of Alexander | I189: Sep 01
G190: SU | H190: R.M. of Reynolds | I190: Oct 29
G191: TR | H191: Municipality of Glenella-Lansdowne | I191: Oct 31
G192: TR | H192: R.M. of Lakeshore | I192: Oct 31
G193: TR | H193: Municipality of McCreary | I193: Oct 31
G194: TR | H194: R.M. of Rosedale | I194: Oct 31
G195: TR | H195: Municipality of Westlake-Gladstone | I195: Oct 29
G196: TR | H196: Municipality of Ste. Rose | I196: Oct 31
G197: TR | H197: R.M. of Alonsa | I197: Oct 31
G198: WI | H198: City of Winnipeg | I198: Jun 30
G260: DIVNUM_MUN
G261: No.
... 25 more rows

Sheet User Instructions
B1: WHO SHOULD USE THIS FORM
B3: School Divisions who have la Division scolaire franco-manitobaine (DSFM) pupils residing in their divisions should use this form to calculate DSFM's portion of Special Levy payments received from municipalities.
B7: Payment of the calculated amount from this form should be remitted to DSFM within five (5) working days
B8: as set out by the Public School Act Regulation 371/88 Section 3.1(1).
B11: WHAT THIS FORM DOES
A13: 1) | B13: This form calculates the percentage of the total Special Levy applicable to DSFM. The percentage calculated
B14: is applied to the Special Levy payments received from municipalities to arrive at the amount owing to
B15: DSFM for each remittance period.
A18: 2) | B18: The form can also serve as a working file to monitor all the remittances paid to DSFM per year and to
B19: monitor Special Levy receivable balances from each municipality.
A22: 3) | B22: Vertical and horizontal checks and balances prevent school division from over remitting to DSFM.
B23: Sum formulas calculate the total amounts to be collected from municipalities and remitted to DSFM.
B24: If an entry exceeds the total sum, an error message appears and blocks the entry. You may click the cell
B25: to view the formula.
B28: HOW TO USE THIS FORM
A30: 1) | B30: On the top left hand corner, select your School Division and language.
A39: 2) | B39: When a school division is selected, the following fields are automatically filled in and calculated, with the
B40: exception of "DSFM's share of EPTC, TIG and PTOG (paid by Province)". Pre-entered data were
B41: taken from the Calculation of Special Levy page: SL Form 2a of the Budget file.
A52: 3) | B52: Tax due dates and Total Special Levy by Municipality (gross of Education Property Tax Credit (EPTC)) as
B53: they appeared in the Budget file ratio page, are also automatically filled in when a school division is selected.
A56: 4) | B56: Enter the gross amount of EPTC by Municipality to determine "Net Special Levy By Municipality". Gross
B57: EPTC by municipality is provided to School Divisions when they receive their EPTC payment (s) from the
B58: Province. The field "DSFM share of EPTC (paid by Province)" is also calculated as you enter the gross
B59: amount of EPTC by municipality.
A62: 5) | B62: Enter payments made by municipalities in the remittance columns. Selection of the number of remittances is provided to a maximum of 12. Number of remittances may be increased as needed and remittance dates may be entered on the line provided for reference. Printing options are also provided; hide and unhide desired remittance column manually, prior to printing. Remember to select "French" for language before printing a copy to send to DSFM.
A73: 6) | B73: If a total doesn't fit the column, you can adjust the column width.

Sheet DATA ENTRY
A1: =IF(DIVNUM=1,"",VLOOKUP(DIVNUM,LOOKUPTABLE,2)) ->  | C1: =IF(A97=1,C112,C113) -> Calculation of Special Levy Remittances to la Division scolaire franco-manitobaine (DSFM) | Y1: 0 | AM1: 1 | AN1: =IF(DATA!$AI$5=0,1,DATA!$AI$5) -> 1 | AO1: =+AN1-1 -> 0
AN2: LETTER
C7: =IF($A$97=1,C106,C107) -> YEAR OF LEVY > | D7: 2022
C9: =IF($A$97=1,C109,C110) -> SPECIAL LEVY BEFORE TIG (line J.) > | D9: =+DATA!$BA$45 -> 0 | E9: Select the
C10: =IF($A$97=1,C115,C116) -> SPECIAL LEVY FOR DSFM (line H.) > | D10: =+DATA!$AY$45 -> 0 | E10: number of
C11: =IF($A$97=1,C128,C129) -> ADJUSTMENT FOR DSFM (line I.) > | D11: =+DATA!$AZ$45 -> 0 | E11: remittance(s):
C13: =IF($A$97=1,C124,C125) -> PERCENTAGE (%) OF TOTAL SPECIAL LEVY APPLICABLE TO DSFM > | D13: =IF(DIVLEVY=0,"",ROUND((DSFMLEVY+DSFMADJ)/DIVLEVY,8)) -> 
C15: =IF($A$96=1,C117,C118) -> DSFM's share of EPTC (paid by Province) | D15: =IF(D13="","",(+D58*D13)) -> 
C16: =IF($A$97=1,C119,C120) -> Part du CIFME de la DSFM (payée par la province) | D16: =+D59*D15 ->  | E16: 4 | F16: 1 | G16: 2 | H16: 3 | I16: 4 | J16: 5 | K16: 6 | L16: 7 | M16: 8 | N16: 9 | O16: 10 | P16: 11 | Q16: 12
C18: TOTAL TIG (line L.) | D18: =DATA!BC45 -> 0
C19: DIVISION share of TIG (paid by Province) | D19: =IF(D13="","",D18-D20) -> 
C20: =IF($A$97=1,C138,C139) -> DSFM's share of TIG (paid by Province) | D20: =IF(D13="","",(D18*D13)) ->  | E20: 4
C22: TOTAL PTOG (line M. + line N. which is paid by Province) | D22: =DATA!BD45+DATA!BE45 -> 0
C24: NET SPECIAL LEVY (line O.) | D24: =DIVLEVY-D18-D22 -> 0
C26: =IF($A$97=1,C135,C136) -> NET TO BE PAID TO DSFM | D26: =IF(D15="","",+DSFMLEVY+DSFMADJ-D15-D20) -> 
A28: =IF($A$97=1,A100,A101) -> REMITTING AUTHORITY / MUNICIPALITY | B28: =IF($A$97=1,B100,B101) -> TAX DUE DATE | C28: =IF($A$97=1,C100,C101) -> TOTAL SPECIAL LEVY BY MUNICIPALITY | D28: =IF($A$97=1,D100,D101) -> Less: GROSS EDUCATION PROPERTY TAX CREDIT | E28: =IF($A$97=1,E100,E101) -> NET SPECIAL LEVY BY MUNICIPALITY | F28: =IF($AN$1=F16,IF($A$97=1,"AMOUNT COLLECTED","MONTANT PERÇU"),"") -> AMOUNT COLLECTED
F29: =IF($A$97=1,F97,F98) -> REMITTANCE 1 | G29: =IF($A$97=1,G97,G98) -> REMITTANCE 2 | H29: REMITTANCE 3 | I29: REMITTANCE 4 | J29: REMITTANCE 5 | K29: REMITTANCE 6 | L29: REMITTANCE 7 | M29: REMITTANCE 8 | N29: REMITTANCE 9 | O29: REMITTANCE 10 | P29: REMITTANCE 11 | Q29: REMITTANCE 12 | S29: =IF($A$97=1,FORM!G31,FORM!G32) -> YEAR TO DATE | T29: =IF($A$97=1,A111,A113) -> BALANCE TO
T30: =IF($A$97=1,A112,A114) -> COLLECT
A33: =+DATA!M264 ->  | B33: =IF(A33="","",DATA!R264) ->  | C33: =IF(DATA!$FM$45=1,(DATA!$AX$45-DATA!$BA$45-DATA!$FN$45),DATA!$Q$264) -> 0 | E33: =+C33-D33 -> 0 | S33: =SUM(MUN_1) -> 0 | T33: =+HOMEMUN-S33 -> 0
A34: =+DATA!M265 ->  | B34: =IF(A34="","",DATA!R265) ->  | C34: =+DATA!$Q$265 -> 0 | E34: 0 | S34: =SUM(MUN_2) -> 0 | T34: =+E34-S34 -> 0
A35: =+DATA!M266 ->  | B35: =IF(A35="","",DATA!R266) ->  | C35: =+DATA!$Q$266 -> 0 | E35: 0 | S35: =SUM(MUN_3) -> 0 | T35: 0
A36: =+DATA!M267 ->  | B36: =IF(A36="","",DATA!R267) ->  | C36: =+DATA!$Q$267 -> 0 | E36: 0 | S36: =SUM(MUN_4) -> 0 | T36: 0
A37: =+DATA!M268 ->  | B37: =IF(A37="","",DATA!R268) ->  | C37: =+DATA!$Q$268 -> 0 | E37: 0 | S37: =SUM(MUN_5) -> 0 | T37: 0
A38: =+DATA!M269 ->  | B38: =IF(A38="","",DATA!R269) ->  | C38: =+DATA!$Q$269 -> 0 | E38: 0 | S38: =SUM(MUN_6) -> 0 | T38: 0
A39: =+DATA!M270 ->  | B39: =IF(A39="","",DATA!R270) ->  | C39: =+DATA!$Q$270 -> 0 | E39: 0 | S39: =SUM(MUN_7) -> 0 | T39: 0
A40: =+DATA!M271 ->  | B40: =IF(A40="","",DATA!R271) ->  | C40: =+DATA!$Q$271 -> 0 | E40: 0 | S40: =SUM(MUN_8) -> 0 | T40: 0
A41: =+DATA!M272 ->  | B41: =IF(A41="","",DATA!R272) ->  | C41: =+DATA!$Q$272 -> 0 | E41: 0 | S41: =SUM(MUN_9) -> 0 | T41: 0
A42: =+DATA!M273 ->  | B42: =IF(A42="","",DATA!R273) ->  | C42: =+DATA!$Q$273 -> 0 | E42: 0 | S42: =SUM(MUN_10) -> 0 | T42: 0
A43: =+DATA!M274 ->  | B43: =IF(A43="","",DATA!R274) ->  | C43: =+DATA!$Q$274 -> 0 | E43: 0 | S43: =SUM(MUN_11) -> 0 | T43: 0
A44: =+DATA!M275 ->  | B44: =IF(A44="","",DATA!R275) ->  | C44: =+DATA!$Q$275 -> 0 | E44: 0 | S44: =SUM(MUN_12) -> 0 | T44: 0
A45: =+DATA!M276 ->  | B45: =IF(A45="","",DATA!R276) ->  | C45: =+DATA!$Q$276 -> 0 | E45: 0 | S45: =SUM(MUN_13) -> 0 | T45: 0
A46: =+DATA!M277 ->  | B46: =IF(A46="","",DATA!R277) ->  | C46: =+DATA!$Q$277 -> 0 | E46: 0 | S46: =SUM(MUN_14) -> 0 | T46: 0
A47: =+DATA!M278 ->  | B47: =IF(A47="","",DATA!R278) ->  | C47: =+DATA!$Q$278 -> 0 | E47: 0 | S47: =SUM(MUN_15) -> 0 | T47: 0
A48: =+DATA!M279 ->  | B48: =IF(A48="","",DATA!R279) ->  | C48: =+DATA!$Q$279 -> 0 | E48: 0 | S48: =SUM(MUN_16) -> 0 | T48: 0
A49: =+DATA!M280 ->  | B49: =IF(A49="","",DATA!R280) ->  | C49: =+DATA!$Q$280 -> 0 | E49: 0 | S49: =SUM(MUN_17) -> 0 | T49: 0
A50: =+DATA!M281 ->  | B50: =IF(A50="","",DATA!R281) ->  | C50: =+DATA!$Q$281 -> 0 | E50: 0 | S50: =SUM(MUN_18) -> 0 | T50: 0
A51: =+DATA!M282 ->  | B51: =IF(A51="","",DATA!R282) ->  | C51: =+DATA!$Q$282 -> 0 | E51: 0 | S51: =SUM(MUN_19) -> 0 | T51: 0
A52: =+DATA!M283 ->  | B52: =IF(A52="","",DATA!R283) ->  | C52: =+DATA!$Q$283 -> 0 | E52: 0 | S52: =SUM(MUN_20) -> 0 | T52: 0
A53: =+DATA!M284 ->  | B53: =IF(A53="","",DATA!R284) ->  | C53: =+DATA!$Q$284 -> 0 | E53: 0 | S53: =SUM(MUN_21) -> 0 | T53: 0
A54: =+DATA!M285 ->  | B54: =IF(A54="","",DATA!R285) ->  | C54: =+DATA!$Q$285 -> 0 | E54: 0 | S54: =SUM(MUN_22) -> 0 | T54: 0
A55: =+DATA!M286 ->  | B55: =IF(A55="","",DATA!R286) ->  | C55: =+DATA!$Q$286 -> 0 | E55: 0 | S55: =SUM(MUN_23) -> 0 | T55: 0
A56: =+DATA!M287 -> 0 | B56: =IF(A56="","",DATA!R287) -> 00:00:00 | C56: =+DATA!$Q$287 -> 0 | E56: 0 | S56: =SUM(F56:Q56) -> 0 | T56: 0
A58: =IF(A97=1,A108,A109) -> TOTALS | C58: =SUM(C31:C56) -> 0 | D58: =SUM(D31:D56) -> 0 | E58: =SUM(E31:E56) -> 0 | F58: =SUM(F33:F56) -> 0 | G58: =SUM(G33:G56) -> 0 | H58: 0 | I58: 0 | J58: 0 | K58: 0 | L58: 0 | M58: 0 | N58: 0 | O58: 0 | P58: 0 | Q58: 0 | S58: =SUM(S33:S56) -> 0 | T58: =SUM(T33:T56) -> 0
A61: TOTAL PTOG (paid by Province) | E61: =D22 -> 0 | F61: =IF($D$13="","",IF($E$62<>0,F58/$E58*$D$22,0)) ->  | G61: =IF($D$13="","",IF($E$62<>0,G58/$E58*$D$22,0)) ->  | H61: =IF($D$13="","",IF($E$62<>0,H58/$E58*$D$22,0)) ->  | I61: =IF($D$13="","",IF($E$62<>0,I58/$E58*$D$22,0)) ->  | J61: =IF($D$13="","",IF($E$62<>0,J58/$E58*$D$22,0)) ->  | S61: =SUM(F61:Q61) -> 0 | T61: =+E61-S61 -> 0
A62: TOTAL SPECIAL LEVY EXCLUDING TIG PAYMENT TO DIVISION | E62: =E61+E58 -> 0 | F62: =IF($D$13="","",IF($E$62<>0,F58/$E58*$E$62,0)) ->  | S62: =SUM(F62:Q62) -> 0 | T62: 0
A63: =IF($A$97=1,B103,B104) -> AMOUNT REMITTED TO DSFM | E63: =IF($D$13="","",E62*D13) ->  | F63: =IF($D$13="","",IF($E$62<>0,F58/$E58*$E$63,0)) ->  | G63: =IF($D$13="","",IF($E$62<>0,G58/$E58*$E$63,0)) ->  | H63: =IF($D$13="","",IF($E$62<>0,H58/$E58*$E$63,0)) ->  | I63: =IF($D$13="","",IF($E$62<>0,I58/$E58*$E$63,0)) ->  | J63: =IF($D$13="","",IF($E$62<>0,J58/$E58*$E$63,0)) ->  | S63: =SUM(F63:Q63) -> 0 | T63: =IF($E$63="",0,(E63-S63)) -> 0
F64: =IF(F16=DATA!$AI$5,"D","") ->  | G64: =IF(G16=DATA!$AI$5,"D","") ->  | H64: =IF(H16=DATA!$AI$5,"D","") ->  | I64: =IF(I16=DATA!$AI$5,"D","") ->  | J64: =IF(J16=DATA!$AI$3,"D","") ->  | K64: =IF(K16=DATA!$AI$3,"D","") ->  | L64: =IF(L16=DATA!$AI$3,"D","") ->  | M64: =IF(M16=DATA!$AI$3,"D","") ->  | N64: =IF(N16=DATA!$AI$3,"D","") ->  | O64: =IF(O16=DATA!$AI$3,"D","") ->  | P64: =IF(P16=DATA!$AI$3,"D","") ->  | Q64: =IF(Q16=DATA!$AI$3,"D","") -> 
F65: =IF($A$97=1,IF(F16=DATA!$AI$5,"Please remit to DSFM within five days.",""),IF(F16=DATA!$AI$5,"Veuillez remettre à la DSFM d’ici 5 jours. ","")) ->  | G65: =IF($A$97=1,IF(G16=DATA!$AI$5,"Please remit to DSFM within five days.",""),IF(G16=DATA!$AI$5,"Veuillez remettre à la DSFM d’ici 5 jours. ","")) ->  | H65: =IF($A$97=1,IF(H16=DATA!$AI$5,"Please remit to DSFM within five days.",""),IF(H16=DATA!$AI$5,"Veuillez remettre à la DSFM d’ici 5 jours. ","")) ->  | I65: =IF($A$97=1,IF(I16=DATA!$AI$5,"Please remit to DSFM within five days.",""),IF(I16=DATA!$AI$5,"Veuillez remettre à la DSFM d’ici 5 jours. ","")) ->  | J65: =IF($A$97=1,IF(J16=DATA!$AI$5,"Please remit to DSFM within five days.",""),IF(J16=DATA!$AI$5,"Veuillez remettre à la DSFM d’ici 5 jours.","")) ->  | K65: =IF($A$97=1,IF(K16=DATA!$AI$5,"Please remit to DSFM within five days.",""),IF(K16=DATA!$AI$5,"Veuillez remettre à la DSFM d’ici 5 jours. ","")) ->  | L65: =IF($A$97=1,IF(L16=DATA!$AI$5,"Please remit to DSFM within five days.",""),IF(L16=DATA!$AI$5,"Veuillez remettre à la DSFM d’ici 5 jours. ","")) ->  | M65: =IF($A$97=1,IF(M16=DATA!$AI$5,"Please remit to DSFM within five days.",""),IF(M16=DATA!$AI$5,"Veuillez remettre à la DSFM d’ici 5 jours. ","")) ->  | N65: =IF($A$97=1,IF(N16=DATA!$AI$5,"Please remit to DSFM within five days.",""),IF(N16=DATA!$AI$5,"Veuillez remettre à la DSFM d’ici 5 jours. ","")) ->  | O65: =IF($A$97=1,IF(O16=DATA!$AI$5,"Please remit to DSFM within five days.",""),IF(O16=DATA!$AI$5,"Veuillez remettre à la DSFM d’ici 5 jours. ","")) ->  | P65: =IF($A$97=1,IF(P16=DATA!$AI$5,"Please remit to DSFM within five days.",""),IF(P16=DATA!$AI$5,"Veuillez remettre à la DSFM d’ici 5 jours. ","")) ->  | Q65: =IF($A$97=1,IF(Q16=DATA!$AI$5,"Please remit to DSFM within five days.",""),IF(Q16=DATA!$AI$5,"Veuillez remettre à la DSFM d’ici 5 jours. ","")) -> 
F66: =IF(OR(F16=$AN$1,F16=$AO$1),1,"") -> 1
A68: Notes: | D68: Remarques :
A69: (1) Per Calculation of Special Levy submitted with annual budget | D69: (1) Selon le calcul de la taxe spéciale soumis avec le budget annuel
A70: (2) Portion of Special Levy (per Note 1) provided by the Province of Manitoba | D70: (2) Partie de la taxe spéciale (voir remarque 1) fournie par la province du Manitoba.
A72: I certify the above to be a true and correct statement. | D72: Je déclare vrais et exacts les renseignements ci-dessus.
A76: Date | D76: Secretary-treasurer / Secrétaire-trésorier
A97: =+DATA!AQ1 -> 1 | F97: REMITTANCE 1 | G97: REMITTANCE 2 | H97: REMITTANCE 3 | I97: REMITTANCE 4 | J97: REMITTANCE 5 | K97: REMITTANCE 6 | L97: REMITTANCE 7 | M97: REMITTANCE 8 | N97: REMITTANCE 9 | O97: REMITTANCE 10 | P97: REMITTANCE 11 | Q97: REMITTANCE 12
A98: =IF($A$97=1,"Please remit to DSFM within five days.","Veuillez remettre à la DSFM d’ici 5 jours.") -> Please remit to DSFM within five days. | F98: REMISE 1 | G98: REMISE 2 | H98: REMISE 3 | I98: REMISE 4 | J98: REMISE 5 | K98: REMISE 6 | L98: REMISE 7 | M98: REMISE 8 | N98: REMISE 9 | O98: REMISE 10 | P98: REMISE 11 | Q98: REMISE 12
A100: REMITTING AUTHORITY / MUNICIPALITY | B100: TAX DUE DATE | C100: TOTAL SPECIAL LEVY BY MUNICIPALITY | D100: Less: GROSS EDUCATION PROPERTY TAX CREDIT | E100: NET SPECIAL LEVY BY MUNICIPALITY
A101: MUNICIPALITÉ | B101: =+FORM!D42&" "&FORM!D43 -> ÉCHÉANCE DE LA TAXE | C101: TOTAL DE LA TAXE SPÉCIALE | D101: Moins: CRÉDIT D'IMPÔT FONCIER DU MANITOBA EN MATIÉRE D'ÉDUCATION | E101: =+FORM!E42&" "&FORM!E43 -> MONTANT NET DE LA TAXE SPÉCIALE
B103: AMOUNT REMITTED TO DSFM
B104: MONTANT REMIS À DSFM
C106: YEAR OF LEVY >
C107: ANNÉE DE LA TAXE >
A108: TOTALS
A109: TOTAUX | C109: SPECIAL LEVY BEFORE TIG (line J.) >
C110: TAXE SPÉCIALE (line J. from SL form) >
A111: BALANCE TO
A112: COLLECT | C112: Calculation of Special Levy Remittances to la Division scolaire franco-manitobaine (DSFM)
A113: SOLDE | C113: Calcul de la taxe spéciale remise à la Division scolaire franco-manitobaine (DSFM)
A114: RECEVABLE
C115: SPECIAL LEVY FOR DSFM (line H.) >
A116: Select the | C116: TAXE SPÉCIALE POUR LA DSFM (line H.) >
A117: number of
A118: remittance(s). | C118: DSFM's share of EPTC (paid by Province)
A119: Sélectionnez | C119: Part du CIFME de la DSFM (payée par la province)
A120: le nombre
A121: de remises. | C121: EDUCATION PROPERTY TAX CREDIT (EPTC) >
C122: CRÉDIT D'IMPÔT FONCIER DU MANITOBA POUR L'ÉDUCATION (EPTC) >
C124: PERCENTAGE (%) OF TOTAL SPECIAL LEVY APPLICABLE TO DSFM >
C125: POURCENTAGE (%) DU TOTAL DE LA TAXE SPÉCIALE >
C128: ADJUSTMENT FOR DSFM (line I.) >
C129: AJUSTEMENT POUR LA DSFM (line I.) >
B132: TOTAL FOR DSFM CALCULATION (EXCLUDES EPTC)
B133: TOTAL POUR LE CALCUL DSFM (EXCLUT EPTC)
C135: NET TO BE PAID TO DSFM
C136: MONTANT NET À ÊTRE PAYÉ À LA DSFM
C138: DSFM's share of TIG (paid by Province)
C139: Part de l'incitatif fiscal de la DSFM (payée par la province)
C141: DSFM's share of PTOG (paid by Province)
C142: =+C139 -> Part de l'incitatif fiscal de la DSFM (payée par la province)

Sheet FORM (hidden)
A2: Calculation of Amount Remitted to la Division scolaire franco-manitobaine
A3: Calcul du montant remis à la Division scolaire franco-manitobaine
A5: School Division: | C5: =IF(VLOOKUP(DIVNUM,LOOKUPTABLE,2)="Press arrow for your School Division >","",VLOOKUP(DIVNUM,LOOKUPTABLE,2)) -> 
A6: Division scolaire :
A8: Year of Levy: | C8: =LEVYYEAR -> 2022
A9: Année de la taxe :
A11: For the Period Ended: | D11: =+DATA!AI4 -> 00:00:00 | O11: PERCENTAGE IN BOX (C) IS FORMATTED TO DISPLAY ONLY 3 DECIMALS IN ORDER TO FIT THEIR RESPECTIVE FIELDS. THE ACTUAL UNROUNDED PERCENTAGE USED TO CALCULATE THE DSFM REMITTANCE ON THIS FORM IS SHOWN BELOW.
A12: Pour la période se terminant le :
A15: TOTAL SPECIAL LEVY / TOTAL DE LA TAXE SPÉCIALE | I15: =DIVLEVY -> 0 | L15: (1)
I17: (A)
A19: PORTION OF SPECIAL LEVY APPLICABLE TO LA DIVISION SCOLAIRE FRANCO-MANITOBAINE | I19: =DSFMLEVY+DSFMADJ -> 0 | L19: (1)
A20: QUOTE-PART DE LA TAXE SPÉCIALE ATTRIBUÉE À LA DIVISION SCOLAIRE FRANCO-MANITOBAINE
I21: (B)
A23: PERCENTAGE (%) OF TOTAL SPECIAL LEVY APPLICABLE TO LA DIVISION SCOLAIRE | I23: =IF(I15>0,(I19/I15),0) -> 0 | O23: =I23 -> 0
A24: FRANCO-MANITOBAINE : (B) ÷ (A) / POURCENTAGE (%) DU TOTAL DE LA TAXE SPÉCIALE
A25: ATTRIBUÉ À LA DIVISION SCOLAIRE FRANCO-MANITOBAINE : (B) ÷ (A) | I25: (C)
O26: THIS WILL ENSURE THE TOTAL OF REMITTANCES TO THE DSFM WILL MATCH THE AMOUNT (TOTAL OF LINES H. AND I.) CALCULATED ON YOUR SPECIAL LEVY FORM (ROUNDED TO THE NEAREST DOLLAR).
G28: AMOUNT COLLECTED / MONTANT PERÇU
I30: PRIOR PERIODS
A31: PROVINCE OF MANITOBA | E31: AMOUNT | G31: YEAR TO DATE | I31: PÉRIODES | L31: CURRENT PERIOD
A32: PROVINCE DU MANITOBA | E32: MONTANT | G32: À CE JOUR | I32: ANTÉRIEURES | L32: PÉRIODE COURANTE
E33: (2) | G33: (D) | I33: (E) | L33: (D) - (E)
A34: EDUCATION PROPERTY TAX CREDIT | E34: =DIVEPTC ->  | G34: =SUM('DATA ENTRY'!F31:Q31) -> 0 | I34: =G34-L34 ->  | L34: =+DATA!AJ6 -> 
A35: CRÉDIT D'IMPÔT FONCIER DU MANITOBA POUR L'ÉDUCATION
A36: TAX INCENTIVE GRANT | E36: =DIVTIG ->  | G36: =SUM('DATA ENTRY'!F32:Q32) -> 0 | I36: =G36-L36 ->  | L36: =+DATA!AJ7 -> 
A37: CRÉDIT D'IMPÔT FONCIER EN MATIÈRE D'ÉDUCATION
G39: AMOUNT COLLECTED / MONTANT PERÇU
D40: TAX DUE
D41: DATE | E41: NET SPECIAL LEVY | I41: PRIOR PERIODS
A42: MUNICIPALITY / MUNICIPALITÉ | D42: ÉCHÉANCE | E42: MONTANT NET DE | G42: YEAR TO DATE | I42: PÉRIODES | L42: CURRENT PERIOD
D43: DE LA TAXE | E43: LA TAXE SPÉCIALE | G43: À CE JOUR | I43: ANTÉRIEURES | L43: PÉRIODE COURANTE
G44: (D) | I44: (E) | L44: (D) - (E)
A45: =IF('DATA ENTRY'!A33=0,""," "&'DATA ENTRY'!A33) ->  | D45: ='DATA ENTRY'!B33 ->  | E45: =HOMEMUN -> 0 | G45: =SUM('DATA ENTRY'!F33:Q33) -> 0 | I45: =G45-L45 ->  | L45: =+DATA!AJ8 -> 
A46: =IF('DATA ENTRY'!A34=0,""," "&'DATA ENTRY'!A34) ->  | D46: ='DATA ENTRY'!B34 ->  | E46: ='DATA ENTRY'!E34 -> 0 | G46: =SUM('DATA ENTRY'!F34:Q34) -> 0 | I46: =G46-L46 ->  | L46: =+DATA!AJ9 -> 
A47: =IF('DATA ENTRY'!A35=0,""," "&'DATA ENTRY'!A35) ->  | D47: ='DATA ENTRY'!B35 ->  | E47: ='DATA ENTRY'!E35 -> 0 | G47: =SUM('DATA ENTRY'!F35:Q35) -> 0 | I47: =G47-L47 ->  | L47: =+DATA!AJ10 -> 
A48: =IF('DATA ENTRY'!A36=0,""," "&'DATA ENTRY'!A36) ->  | D48: ='DATA ENTRY'!B36 ->  | E48: ='DATA ENTRY'!E36 -> 0 | G48: =SUM('DATA ENTRY'!F36:Q36) -> 0 | L48: =+DATA!AJ11 -> 
A49: =IF('DATA ENTRY'!A37=0,""," "&'DATA ENTRY'!A37) ->  | D49: ='DATA ENTRY'!B37 ->  | E49: ='DATA ENTRY'!E37 -> 0 | G49: =SUM('DATA ENTRY'!F37:Q37) -> 0 | L49: =+DATA!AJ12 -> 
A50: =IF('DATA ENTRY'!A38=0,""," "&'DATA ENTRY'!A38) ->  | D50: ='DATA ENTRY'!B38 ->  | E50: ='DATA ENTRY'!E38 -> 0 | G50: =SUM('DATA ENTRY'!F38:Q38) -> 0 | L50: =+DATA!AJ13 -> 
A51: =IF('DATA ENTRY'!A39=0,""," "&'DATA ENTRY'!A39) ->  | D51: ='DATA ENTRY'!B39 ->  | E51: ='DATA ENTRY'!E39 -> 0 | G51: =SUM('DATA ENTRY'!F39:Q39) -> 0 | L51: =+DATA!AJ14 -> 
A52: =IF('DATA ENTRY'!A40=0,""," "&'DATA ENTRY'!A40) ->  | D52: ='DATA ENTRY'!B40 ->  | E52: ='DATA ENTRY'!E40 -> 0 | G52: =SUM('DATA ENTRY'!F40:Q40) -> 0 | L52: =+DATA!AJ15 -> 
A53: =IF('DATA ENTRY'!A41=0,""," "&'DATA ENTRY'!A41) ->  | D53: ='DATA ENTRY'!B41 ->  | E53: ='DATA ENTRY'!E41 -> 0 | G53: =SUM('DATA ENTRY'!F41:Q41) -> 0 | L53: =+DATA!AJ16 -> 
A54: =IF('DATA ENTRY'!A42=0,""," "&'DATA ENTRY'!A42) ->  | D54: ='DATA ENTRY'!B42 ->  | E54: ='DATA ENTRY'!E42 -> 0 | G54: =SUM('DATA ENTRY'!F42:Q42) -> 0 | L54: =+DATA!AJ17 -> 
A55: =IF('DATA ENTRY'!A43=0,""," "&'DATA ENTRY'!A43) ->  | D55: ='DATA ENTRY'!B43 ->  | E55: ='DATA ENTRY'!E43 -> 0 | G55: =SUM('DATA ENTRY'!F43:Q43) -> 0 | L55: =+DATA!AJ18 -> 
A56: =IF('DATA ENTRY'!A44=0,""," "&'DATA ENTRY'!A44) ->  | D56: ='DATA ENTRY'!B44 ->  | E56: ='DATA ENTRY'!E44 -> 0 | G56: =SUM('DATA ENTRY'!F44:Q44) -> 0 | L56: =+DATA!AJ19 -> 
A57: =IF('DATA ENTRY'!A45=0,""," "&'DATA ENTRY'!A45) ->  | D57: ='DATA ENTRY'!B45 ->  | E57: ='DATA ENTRY'!E45 -> 0 | G57: =SUM('DATA ENTRY'!F45:Q45) -> 0 | L57: =+DATA!AJ20 -> 
A58: =IF('DATA ENTRY'!A46=0,""," "&'DATA ENTRY'!A46) ->  | D58: ='DATA ENTRY'!B46 ->  | E58: ='DATA ENTRY'!E46 -> 0 | G58: =SUM('DATA ENTRY'!F46:Q46) -> 0 | L58: =+DATA!AJ21 -> 
A59: =IF('DATA ENTRY'!A47=0,""," "&'DATA ENTRY'!A47) ->  | D59: ='DATA ENTRY'!B47 ->  | E59: ='DATA ENTRY'!E47 -> 0 | G59: =SUM('DATA ENTRY'!F47:Q47) -> 0 | L59: =+DATA!AJ22 -> 
A60: =IF('DATA ENTRY'!A48=0,""," "&'DATA ENTRY'!A48) ->  | D60: ='DATA ENTRY'!B48 ->  | E60: ='DATA ENTRY'!E48 -> 0 | G60: =SUM('DATA ENTRY'!F48:Q48) -> 0 | L60: =+DATA!AJ23 -> 
A61: =IF('DATA ENTRY'!A49=0,""," "&'DATA ENTRY'!A49) ->  | D61: ='DATA ENTRY'!B49 ->  | E61: ='DATA ENTRY'!E49 -> 0 | G61: =SUM('DATA ENTRY'!F49:Q49) -> 0 | I61: =G61-L61 ->  | L61: =+DATA!AJ24 -> 
A62: =IF('DATA ENTRY'!A50=0,""," "&'DATA ENTRY'!A50) ->  | D62: ='DATA ENTRY'!B50 ->  | E62: ='DATA ENTRY'!E50 -> 0 | G62: =SUM('DATA ENTRY'!F50:Q50) -> 0 | L62: =+DATA!AJ25 -> 
A63: =IF('DATA ENTRY'!A51=0,""," "&'DATA ENTRY'!A51) ->  | D63: ='DATA ENTRY'!B51 ->  | E63: ='DATA ENTRY'!E51 -> 0 | G63: =SUM('DATA ENTRY'!F51:Q51) -> 0 | L63: =+DATA!AJ26 -> 
A64: =IF('DATA ENTRY'!A52=0,""," "&'DATA ENTRY'!A52) ->  | D64: ='DATA ENTRY'!B52 ->  | E64: ='DATA ENTRY'!E52 -> 0 | G64: =SUM('DATA ENTRY'!F52:Q52) -> 0 | L64: =+DATA!AJ27 -> 
A65: =IF('DATA ENTRY'!A53=0,""," "&'DATA ENTRY'!A53) ->  | D65: ='DATA ENTRY'!B53 ->  | E65: ='DATA ENTRY'!E53 -> 0 | G65: =SUM('DATA ENTRY'!F53:Q53) -> 0 | L65: =+DATA!AJ28 -> 
A66: =IF('DATA ENTRY'!A54=0,""," "&'DATA ENTRY'!A54) ->  | D66: ='DATA ENTRY'!B54 ->  | E66: ='DATA ENTRY'!E54 -> 0 | G66: =SUM('DATA ENTRY'!F54:Q54) -> 0 | L66: =+DATA!AJ29 -> 
A67: =IF('DATA ENTRY'!A55=0,""," "&'DATA ENTRY'!A55) ->  | D67: ='DATA ENTRY'!B55 ->  | E67: ='DATA ENTRY'!E55 -> 0 | G67: =SUM('DATA ENTRY'!F55:Q55) -> 0 | L67: =+DATA!AJ30 -> 
A68: TOTAL MUNICIPALITIES | E68: =SUM(E45:F67) -> 0 | G68: =SUM(G45:H67) -> 0 | I68: =SUM(I45:K67) ->  | L68: =SUM(L45:M67) -> 
A69: TOTAL POUR LES MUNICIPALITÉS
A71: GRAND TOTAL / TOTAL GÉNÉRAL | E71: =E34+E36+E68 ->  | G71: =G34+G36+G68 -> 0 | I71: =+I34+I36+I68 ->  | L71: =L34+L36+L68 -> 
E72: AMOUNT (A) | L72: (F)
E73: MONTANT (A)
A75: AMOUNT REMITTED TO LA DIVISION SCOLAIRE | F75: =I23 -> 0 | G75: X | H75: =L71 ->  | J75: = | K75: =ROUND(F75*H75,0) ->  | O75: < REMITTANCE IS ROUNDED TO NEAREST DOLLAR.
A76: FRANCO-MANITOBAINE / MONTANT REMIS À LA DIVISION
A77: SCOLAIRE FRANCO-MANITOBAINE
B79: YEAR TO DATE | C79: =ROUND(G71*F75,0) -> 0 | F79: (C) | H79: (F) | K79: REMITTANCE
B80: À CE JOUR | K80: REMISE
A83: Notes: | G83: Remarques :
A84: (1) Per Calculation of Special Levy submitted with annual budget | G84: (1) Selon le calcul de la taxe spéciale soumis avec le budget annuel
A85: (2) Portion of Special Levy (per Note 1) provided by the Province of Manitoba | G85: (2) Partie de la taxe spéciale (voir remarque 1) fournie par la province
G86: du Manitoba
A87: I certify the above to be a true and correct statement. / Je déclare vrais et exacts les renseignements ci-dessus.
A88: =IF(DATE_ON_OFF=1,NOW(),IF(DATE_ON_OFF=2,"",DATE_ENTRY)) -> 
A89: Date | D89: Secretary-treasurer / Secrétaire-trésorier
A91: c.c. : Division scolaire franco-manitobaine
A92: School Division / Division scolaire
A93: This form is available on the Internet at: / La présente formule est disponible sur Internet : http://www.edu.gov.mb.ca/k12/finance/forms/index.html
A95: Form 2/Formule 2

Sheet Changes (hidden)
B2: Changes in
B3: Data Entry Sheet
A4: 1 | B4: added a row of TOTAL in Row 42
A5: 2 | B5: added 2 columns (Column M of YEAR TO DATE COLLECTION and column N of BALANCE TO COLLECT)
A6: 3 | B6: In Column D 17: D 40 there is a Hide messege of Error (If the sum of the amounts in the PERIODS Cells is/are bigger than the TOTAL)
A7: 4 | B7: Maked the EPTC and the TIG the same way as the other entries.
A8: 5 | B8: There is no needed to put Zero before the amounts in the AMOUNTS COLLECTED the formula works no matter.
A9: 6 | B9: The TIG in the row 16 it fills automatically
A10: 7 | B10: Added 2 columns for Special Levy and EPTC
B13: Changes in
B14: Form Sheet
A15: 1 | B15: Changed the formula en Column L ( Current Period, no there is no needed to put Zero en the AMOUNTS COLLECTED )
A16: 2 | B16: Changed the Rows 34 and 36 (the EPTC and the TIG the same way as the other entries )
A17: 3 | B17: Changed the formula in Cell L71 as the same of the other's of the Grand Total.
A18: 4 | B18: Changed the formula in Cell D11 so they can bring me the date of the current period.
